Cogmind - Beta 14 @@@ ROGUE MODE // 2024.09.03 @ 19:42:26 Player: Syanka Result: Destroyed by P-80 Master with Gamma Rifle Performance ------------- Evolutions (7) 3500 Regions Visited (35) 7000 Robots Destroyed (252) 1260 Value Destroyed (6652) 6652 Prototype IDs (55) 1100 Alien Tech Used (8) 1600 Bonus (8013) 8013 TOTAL SCORE: 29125 Bonus ------- High Alert Combat Kills 40 Follower Combat Kills 624 Awakened Behemoth Slayer 1000 Met Data Miner 300 Met Imprinter 300 Met Zhirov 300 Met Warlord at Base 500 MAIN.C Attacked Warlord 500 Used Core Reset Matrix 3000 Scanned by Researcher 1000 Pursued by Intercept 500 Friendly Fire -51 Cogmind --------- Core Integrity 0/1300 Matter 300/300 Energy 68/100 System Corruption 13% Temperature Cool (0) Movement Core (50) Location -3/Section 7 Parts ------- > --- POWER (2) -------- (None) > --- PROPULSION (7) --- (None) > --- UTILITY (11) ----- Structural Scanner Advanced Signal Interpreter > --- WEAPON (2) ------- (None) > --- INVENTORY (5) ---- Light Particle Reactor Advanced Sensor Array Experimental Phase Shifter Peak State ------------ > --- POWER ------------ Vortex Chain Reactor > --- PROPULSION ------- Cooled VTOL Module Cooled VTOL Module Cooled VTOL Module Field Propulsion Array Field Propulsion Array > --- UTILITY ---------- Structural Scanner Enhanced Optical Array Advanced Sensor Array Advanced Signal Interpreter Advanced Transmission Jammer Advanced Hacking Suite Advanced Hacking Suite System Mapper System Shield Advanced System Shield > --- WEAPON ----------- Core Stripper > --- INVENTORY -------- Light Particle Reactor Experimental Phase Shifter Long-range Missile Launcher Power Sword Power Sword [Rating: 147] Favorites ----------- Power Ion Engine Engine Ion Engine Power Core Cooled Fission Core Reactor Vortex Chain Reactor Propulsion Cooled VTOL Module Treads Light Treads Wheel Wheel Flight Unit Cooled VTOL Module Utility Advanced Hacking Suite Device Structural Scanner Storage High-capacity Storage Unit Processor Advanced Signal Interpreter Hackware Advanced Hacking Suite Protection Core Shielding Weapon Power Sword Energy Gun Beamcaster Energy Cannon Heavy Ion Cannon Ballistic Gun Gauss Rifle Ballistic Cannon Improved Light Cannon Launcher Grenade Launcher Special Weapon RU-N14's Throwing Claymores Impact Weapon Heavy Mace Slashing Weapon Power Sword Piercing Weapon Lance Special Melee Weapon Datajack Build | -11 -10 -10 -10 -9 -8 -8 -7 -7 -7 -7 -7 -7 -6 -6 -6 -6 -6 -6 -6 -5 -5 -5 -5 -5 -5 -5 -4 -4 -4 -4 -4 -3 -3 -3 -3 ------- Run | Yrd Mat Min Exi Min Mat Sto Fac Was Fac Low Low Zio Pro Fac Was Fac Low Low Dat Pro Fac Was Fac Upp Upp Zhi Pro Fac Upp Upp War Pro Res Qua Sec Slots Evolved 14 | . . . . . 4 . 2 . . . . . . 2 . . . . . . 2 . . . . . . 2 . . . . 2 . . Power 1 | . . . . . . . . . . . . . . 1 . . . . . . . . . . . . . . . . . . . . . Propulsion 5 | . . . . . . . 2 . . . . . . . . . . . . . 1 . . . . . . 2 . . . . . . . Utility 8 | . . . . . 4 . . . . . . . . 1 . . . . . . 1 . . . . . . . . . . . 2 . . Weapon . | . . . . . . . . . . . . . . . . . . . . . . . . . . . . . . . . . . . . Parts Attached 447 | 9 29 10 2 5 47 47 42 . 50 . 5 10 . 23 9 20 14 . . . 39 . 8 3 3 6 . 19 3 8 11 2 5 10 8 Power 52 | 2 . . . . 2 2 4 . 5 . 1 . . 6 . 3 4 . . . 10 . 1 . . 3 . 2 . 2 3 . 1 . 1 Engine 21 | 2 . . . . . 1 . . 1 . . . . 4 . 3 2 . . . 8 . . . . . . . . . . . . . . Core 26 | . . . . . 2 1 4 . 4 . 1 . . 2 . . 2 . . . 2 . 1 . . 2 . 1 . 2 2 . . . . Reactor 5 | . . . . . . . . . . . . . . . . . . . . . . . . . . 1 . 1 . . 1 . 1 . 1 Propulsion 97 | 3 18 1 . . 11 9 7 . 13 . . . . 5 . 10 . . . . 8 . 4 . . . . 3 . . . . 1 2 2 Treads 28 | . 8 1 . . 10 9 . . . . . . . . . . . . . . . . . . . . . . . . . . . . . Leg . | . . . . . . . . . . . . . . . . . . . . . . . . . . . . . . . . . . . . Wheel 13 | 3 10 . . . . . . . . . . . . . . . . . . . . . . . . . . . . . . . . . . Hover . | . . . . . . . . . . . . . . . . . . . . . . . . . . . . . . . . . . . . Flight 56 | . . . . . 1 . 7 . 13 . . . . 5 . 10 . . . . 8 . 4 . . . . 3 . . . . 1 2 2 Utility 194 | 2 4 7 . 3 23 16 22 . 30 . 4 7 . 6 6 4 4 . . . 12 . 2 3 2 3 . 9 3 5 8 . 3 4 2 Device 126 | 1 3 4 . 3 11 15 13 . 22 . 2 5 . 1 5 1 2 . . . 7 . 1 2 2 2 . 6 1 4 6 . 3 2 2 Storage 3 | 1 1 . . . . . . . . . . . . . . . . . . . . . . . . 1 . . . . . . . . . Processor 8 | . . . . . 2 . 1 . 1 . . 2 . 1 . . . . . . . . . . . . . . . 1 . . . . . Hackware 25 | . . . . . . . 8 . 4 . . . . 3 1 3 . . . . 2 . 1 . . . . . . . 1 . . 2 . Protection 32 | . . 3 . . 10 1 . . 3 . 2 . . 1 . . 2 . . . 3 . . 1 . . . 3 2 . 1 . . . . Artifact . | . . . . . . . . . . . . . . . . . . . . . . . . . . . . . . . . . . . . Weapon 104 | 2 7 2 2 2 11 20 9 . 2 . . 3 . 6 3 3 6 . . . 9 . 1 . 1 . . 5 . 1 . 2 . 4 3 Energy Gun 32 | 2 2 . . 2 8 13 . . . . . . . . . 1 2 . . . 2 . . . . . . . . . . . . . . Energy Cannon 1 | . . . . . . . . . . . . . . . . . . . . . 1 . . . . . . . . . . . . . . Ballistic Gun 2 | . . . . . 1 1 . . . . . . . . . . . . . . . . . . . . . . . . . . . . . Ballistic Cannon 6 | . 5 1 . . . . . . . . . . . . . . . . . . . . . . . . . . . . . . . . . Launcher 20 | . . 1 2 . 2 1 3 . 1 . . . . 2 1 1 2 . . . 2 . . . . . . . . . . 1 . . 1 Special Weapon 1 | . . . . . . . . . . . . 1 . . . . . . . . . . . . . . . . . . . . . . . Impact Weapon 7 | . . . . . . 4 2 . . . . . . . . . . . . . . . . . . . . . . . . . . 1 . Slashing Weapon 26 | . . . . . . . 2 . 1 . . 1 . 2 2 1 2 . . . 2 . 1 . . . . 5 . 1 . 1 . 3 2 Piercing Weapon 8 | . . . . . . . 2 . . . . 1 . 2 . . . . . . 2 . . . 1 . . . . . . . . . . Special Melee Weapon 1 | . . . . . . 1 . . . . . . . . . . . . . . . . . . . . . . . . . . . . . Unidentified Prototypes 32 | . . . . 1 3 6 1 . . . . 1 . 2 1 1 . . . . 2 . . . 1 3 . 1 . . 5 . . 4 . Parts Lost 43 | . 1 1 . . 10 1 2 . . . 1 . . 3 . . . . . . 3 . . . . . . 2 2 . . . . . 17 Power 3 | . . . . . 1 . . . . . . . . 1 . . . . . . 1 . . . . . . . . . . . . . . Propulsion 10 | . . 1 . . 2 . . . . . . . . 1 . . . . . . . . . . . . . . 1 . . . . . 5 Utility 22 | . 1 . . . 4 1 2 . . . 1 . . 1 . . . . . . 2 . . . . . . 1 1 . . . . . 8 Weapon 8 | . . . . . 3 . . . . . . . . . . . . . . . . . . . . . . 1 . . . . . . 4 Highest Loss Streak 17 | . 1 1 . . 4 1 1 . . . 1 . . 3 . . . . . . 1 . . . . . . 1 2 . . . . . 17 To Critical Strikes 1 | . . . . . . . . . . . . . . . . . . . . . . . . . . . . . . . . . . . 1 Average Slot Usage (%) 94 | . 99 100 72 99 99 99 91 92 91 92 91 98 100 88 97 98 98 100 100 100 92 94 93 94 94 94 94 85 87 84 84 85 77 83 75 Engine 5 | . 14 14 14 14 . 6 . . . . . . . 7 13 13 13 13 13 13 6 . . . . . . . . . . . . . . Core 4 | . . . . . 8 2 7 7 6 7 7 7 7 3 . . . . . . 3 11 11 11 11 9 11 9 10 10 9 10 4 . . Treads 8 | . 20 28 28 28 17 18 . . . . . . . . . . . . . . . . . . . . . . . . . . . . . Flight 15 | . . . . . . . 30 30 29 30 30 30 30 23 26 25 26 26 26 26 26 23 22 23 22 22 22 21 24 20 20 20 20 21 20 Device 17 | . 13 8 14 13 24 27 14 15 14 15 22 23 23 18 20 19 18 20 20 20 15 17 17 16 21 22 22 16 13 14 15 15 13 12 12 Storage 4 | . 14 14 14 14 9 9 . . . . . . . . . . . . . . . . . . . . . . . . . . . . . Processor 5 | . . . . . 7 9 7 7 7 7 7 7 7 6 6 6 6 6 6 6 5 5 5 5 5 5 5 5 5 10 10 10 9 9 8 Hackware 12 | . . . . . . . 22 23 23 23 15 15 15 13 18 20 20 20 20 20 22 23 23 23 22 22 22 20 20 20 20 20 18 25 21 Protection 2 | . . 5 . . 13 8 . . . . . . . 6 1 . 1 . . . . . . . . . . 3 5 . . . . . . Energy Gun 4 | . 4 . . 14 17 17 . . . . . . . . 4 5 4 6 6 6 1 . . . . . . . . . . . . . . Ballistic Cannon 3 | . 23 27 . . . . . . . . . . . . . . . . . . . . . . . . . . . . . . . . . Slashing Weapon 3 | . . . . . . . 3 7 7 7 7 7 7 5 5 5 4 6 6 6 1 . 4 5 5 5 5 9 10 10 10 9 9 8 8 Piercing Weapon 1 | . . . . . . . 1 . . . . 5 7 . . . . . . . 3 11 5 5 5 5 5 . . . . . . . . Peak Build Rating 147 | 7 11 12 10 18 34 41 54 52 57 54 54 59 57 67 74 76 78 73 73 73 97 93 96 102 103 106 104 117 118 106 113 107 135 147 136 Average Rating 55 | 5 10 11 8 14 30 32 49 52 50 54 52 56 57 58 69 69 73 73 73 73 87 93 94 100 102 103 104 105 110 100 105 107 118 129 121 On Entrance 69 | . 7 11 12 10 18 34 36 52 52 54 54 53 57 57 65 70 73 73 73 73 73 93 93 96 102 103 104 104 117 97 102 107 107 126 136 Naked Turns . | . . . . . . . . . . . . . . . . . . . . . . . . . . . . . . . . . . . . Heaviest Build 66 | 13 54 56 52 56 65 66 13 12 14 11 13 15 15 20 22 24 20 20 20 20 28 28 28 29 29 29 29 30 30 29 30 29 45 45 45 Greatest Support 51 | 26 40 40 40 40 40 44 24 24 26 28 28 20 28 28 21 28 20 20 28 20 36 36 36 36 30 30 30 45 51 36 30 36 51 51 51 Greatest Overweight (x) 3 | . 2 1 1 1 1 1 . . 3 . . . . 1 1 1 . . . . . . . . . . . . . . . . . . 1 Average Overweight (x) . | . . 1 1 1 1 1 . . . . . . . . . . . . . . . . . . . . . . . . . . . . . Largest Inventory Capacity 20 | 8 20 20 20 20 20 20 20 5 5 5 5 5 5 5 5 5 5 5 5 5 5 5 5 5 5 5 5 5 5 5 5 5 5 5 5 Average Capacity 10 | 7 17 20 20 20 20 20 5 5 5 5 5 5 5 5 5 5 5 5 5 5 5 5 5 5 5 5 5 5 5 5 5 5 5 5 5 Most Carried 20 | 8 20 20 20 20 20 20 20 5 5 5 5 5 5 5 5 5 5 5 5 5 5 5 5 5 5 5 5 5 5 5 5 5 5 5 5 Average Carried 10 | 5 15 19 19 19 19 19 4 4 4 5 4 4 4 4 4 4 4 5 5 5 4 5 4 5 4 4 5 4 4 4 4 5 4 4 4 Final Capacity 20 | 8 20 20 20 20 20 20 5 5 5 5 5 5 5 5 5 5 5 5 5 5 5 5 5 5 5 5 5 5 5 5 5 5 5 5 5 Final Carried 20 | 8 20 19 18 20 20 20 4 5 5 5 5 5 5 5 5 5 5 5 5 5 5 5 5 5 5 5 5 5 4 5 5 5 3 5 3 Class Distribution -------------------- 34% | Hacker-Ninja 31% | Mutant 10% | Hacker-Scout 7% | Scavenger-Mutant 5% | Wizard-Ninja 4% | Hacker-Sprinter Dominant Class ---------------- Mutant | -10/Materials Mutant | -10/Mines Mutant | -10/Exiles Mutant | -9/Mines Scavenger-Mutant | -8/Materials Mutant | -8/Storage Hacker-Scout | -7/Factory Hacker-Scout | -7/Waste Hacker-Scout | -7/Factory Hacker-Scout | -7/Lower Caves Hacker-Ninja | -7/Lower Caves Hacker-Ninja | -7/Zion Hacker-Ninja | -6/Proximity Caves Hacker-Ninja | -6/Factory Hacker-Ninja | -6/Waste Hacker-Ninja | -6/Factory Hacker-Ninja | -6/Lower Caves Hacker-Ninja | -6/Lower Caves Hacker-Ninja | -6/Data Miner Hacker-Ninja | -5/Proximity Caves Hacker-Ninja | -5/Factory Hacker-Ninja | -5/Waste Hacker-Ninja | -5/Factory Hacker-Sprinter | -5/Upper Caves Hacker-Ninja | -5/Upper Caves Hacker-Ninja | -5/Zhirov Hacker-Ninja | -4/Proximity Caves Hacker-Ninja | -4/Factory Hacker-Ninja | -4/Upper Caves Hacker-Ninja | -4/Upper Caves Wizard-Ninja | -4/Warlord Wizard-Ninja | -3/Proximity Caves Wizard-Ninja | -3/Research Wizard-Ninja | -3/Quarantine Wizard-Ninja | -3/Section 7 Resources | -11 -10 -10 -10 -9 -8 -8 -7 -7 -7 -7 -7 -7 -6 -6 -6 -6 -6 -6 -6 -5 -5 -5 -5 -5 -5 -5 -4 -4 -4 -4 -4 -3 -3 -3 -3 ----------- Run | Yrd Mat Min Exi Min Mat Sto Fac Was Fac Low Low Zio Pro Fac Was Fac Low Low Dat Pro Fac Was Fac Upp Upp Zhi Pro Fac Upp Upp War Pro Res Qua Sec Matter Collected 6379 | 290 700 580 8 63 555 455 413 . 571 67 181 102 7 215 90 202 206 . . 53 546 54 91 30 58 70 5 119 136 90 122 21 25 140 114 Remotely 80 | . . 70 . . . . . . . . . . . . . . . . . . . . . . . . . . . 10 . . . . . Salvage Created 10586 | 229 625 178 . 8 2128 1047 766 . 641 . 71 . 8 1037 869 599 76 . . 7 692 259 316 52 . 336 . 244 51 . . 59 62 140 86 Parts 526 | 17 39 19 . 4 112 49 40 . 32 . 10 . 2 48 5 31 4 . . 1 47 2 16 4 . 2 . 10 2 . . 8 6 8 8 Haulers Intercepted 8 | . 2 . . . 4 . 1 . . . . . . . . . . . . . . . 1 . . . . . . . . . . . . Recyclers Shooed 10 | . 2 . . . 2 2 . . 2 . . . . . . 1 . . . . 1 . . . . . . . . . . . . . . Parts Field Recycled . | . . . . . . . . . . . . . . . . . . . . . . . . . . . . . . . . . . . . Retrieved Matter . | . . . . . . . . . . . . . . . . . . . . . . . . . . . . . . . . . . . . Parts Self-Destructed 36 | . . . . . . . . . . . 4 . 18 . . . 1 . . 1 . . . 4 . 1 . . 2 2 . 3 . . . Prevented . | . . . . . . . . . . . . . . . . . . . . . . . . . . . . . . . . . . . . Kills | -11 -10 -10 -10 -9 -8 -8 -7 -7 -7 -7 -7 -7 -6 -6 -6 -6 -6 -6 -6 -5 -5 -5 -5 -5 -5 -5 -4 -4 -4 -4 -4 -3 -3 -3 -3 ------- Run | Yrd Mat Min Exi Min Mat Sto Fac Was Fac Low Low Zio Pro Fac Was Fac Low Low Dat Pro Fac Was Fac Upp Upp Zhi Pro Fac Upp Upp War Pro Res Qua Sec Combat Hostiles Destroyed 124 | . 13 11 . . 29 19 9 . 7 . 2 . 1 1 . 4 8 . . 1 8 . . 1 . . . 2 1 . . 7 . . . Melee 18 | . . . . . . . 2 . 3 . 2 . 1 . . . 1 . . 1 2 . . 1 . . . 2 1 . . 2 . . . Guns 44 | . 3 . . . 27 14 . . . . . . . . . . . . . . . . . . . . . . . . . . . . . Cannons 19 | . 10 9 . . . . . . . . . . . . . . . . . . . . . . . . . . . . . . . . . AOE 41 | . . 2 . . 2 4 7 . 4 . . . . . . 4 7 . . . 6 . . . . . . . . . . 5 . . . Classes Destroyed 19 | 3 5 1 . . 4 . . . 1 . 2 . 1 1 . . . . . . . . . . . . . . . . . . . 1 . Worker 20 | 1 4 1 . 1 5 . 1 . . . . . . 4 . . . . . . 3 . . . . . . . . . . . . . . Builder 11 | . . 1 . 1 1 . 8 . . . . . . . . . . . . . . . . . . . . . . . . . . . . Tunneler 6 | 5 . . . . . . . . . . . . . 1 . . . . . . . . . . . . . . . . . . . . . Hauler 8 | . 2 . . . 4 . 1 . . . . . . . . . . . . . . . 1 . . . . . . . . . . . . Recycler 26 | 1 3 . . . 3 1 3 . 3 . . . . 5 . 3 . . . . 3 . 1 . . . . . . . . . . . . Mechanic 2 | . . . . . 1 . . . 1 . . . . . . . . . . . . . . . . . . . . . . . . . . Operator 20 | . 2 . . . 2 1 3 . 2 . . . . 1 . 5 . . . . 2 . 1 . . . . . . . . . 1 . . Drone 4 | . . . . . . . . . . . . . 1 . . . . . . 1 . . . . . . . . . . . 2 . . . Watcher 32 | . 3 . . . 1 1 4 . 4 . . . . 4 . 2 . . . . 4 . 2 . . . . 4 . . . . 1 1 1 Swarmer 46 | . 6 3 . . . 4 6 . 4 . . . . . . 4 6 . . . 7 . . . . . . 1 . . . 5 . . . Grunt 42 | . 7 8 . . 19 4 3 . . . . . . . . . 1 . . . . . . . . . . . . . . . . . . Brawler 1 | . . . . . 1 . . . . . . . . . . . . . . . . . . . . . . . . . . . . . . Researcher 3 | . . . . . . . . . . . . . . . . . . . . . . . . . . . . . . . . . . 2 1 Sentry 18 | . . . . . 8 9 . . . . . . . . . . 1 . . . . . . . . . . . . . . . . . . Hunter 2 | . . . . . 1 1 . . . . . . . . . . . . . . . . . . . . . . . . . . . . . Programmer 7 | . . . . . . . . . 3 . . . . . . . . . . . 1 . . 1 . . . 1 1 . . . . . . Behemoth 1 | . . . . . . . . . . . . . . 1 . . . . . . . . . . . . . . . . . . . . . Thief 1 | . . . . . . . . . . . 1 . . . . . . . . . . . . . . . . . . . . . . . . Mutant 1 | . . . . . . . . . . . 1 . . . . . . . . . . . . . . . . . . . . . . . . Best Kill Streak 9 | 3 5 3 . 1 6 4 7 . 5 . 1 . 1 5 . 5 5 . . 1 9 . 2 1 . . . 1 1 . . 5 2 1 1 Combat Bots Only 5 | . 5 2 . . 5 4 4 . 4 . 1 . 1 1 . 4 5 . . 1 5 . . 1 . . . 1 1 . . 5 . . . Max Kills in Single Turn 5 | 1 1 2 . 1 2 2 4 . 4 . 1 . 1 1 . 2 2 . . 1 5 . 1 1 . . . 1 1 . . 4 1 1 1 Gunslinging . | . . . . . . . . . . . . . . . . . . . . . . . . . . . . . . . . . . . . Exploded 4 | . . 1 . . 2 2 3 . 4 . . . . . . 2 2 . . . 3 . . . . . . . . . . 4 . . . Melee 1 | . . . . . . . 1 . 1 . 1 . 1 . . . 1 . . 1 1 . . 1 . . . 1 1 . . 1 . . . Uniques/NPCs Destroyed 1 | . . . . . . 1 . . . . . . . . . . . . . . . . . . . . . . . . . . . . . 01-MTF (-8/Storage) Combat | -11 -10 -10 -10 -9 -8 -8 -7 -7 -7 -7 -7 -7 -6 -6 -6 -6 -6 -6 -6 -5 -5 -5 -5 -5 -5 -5 -4 -4 -4 -4 -4 -3 -3 -3 -3 -------- Run | Yrd Mat Min Exi Min Mat Sto Fac Was Fac Low Low Zio Pro Fac Was Fac Low Low Dat Pro Fac Was Fac Upp Upp Zhi Pro Fac Upp Upp War Pro Res Qua Sec Hostile Shots Fired 842 | . 63 53 . . 164 108 35 . 34 . 3 . 10 30 . 20 2 . 2 . 41 . 2 10 . . . 24 38 8 . 16 2 7 170 Missed 292 | . 16 21 . . 47 27 19 . 18 . . . 5 12 . 15 1 . 1 . 12 . 1 5 . . . 11 14 3 . 9 . 2 53 Damage Taken 9274 | . 563 431 . . 1862 1111 381 . 167 . 13 . 52 460 . 140 13 . 46 . 519 . 17 103 . . . 205 462 126 . 115 58 . 2430 Core 2540 | . 126 34 . . 166 181 188 . 71 . . . 11 205 . 40 13 . . . 111 . . 22 . . . 29 78 20 . 25 28 . 1192 Absorbed by Shields 147 | . . . . . . 141 6 . . . . . . . . . . . . . . . . . . . . . . . . . . . . Redirected to Shielding 320 | . . . . . 37 4 . . 29 . 8 . . 44 . . . . . . . . . 13 . . . 26 159 . . . . . . Regen/Repaired (Parts) 802 | . . . . . 11 . 17 . 123 . . . . 46 116 97 . . . . . . 52 . . . . 122 . . 81 . . 137 . Core Remaining (%) 67 | 100 . . . 36 . 36 . . . . . . 61 . . . . . . 69 . . . . . . 86 . . . . 81 . . . Volleys Fired 332 | 15 76 32 . . 116 53 8 . 1 . . . . . . 8 10 . . . 7 . . . . . . . . . . 5 . . 1 Largest 2 | 2 2 2 . . 2 2 1 . 1 . . . . . . 1 1 . . . 1 . . . . . . . . . . 1 . . 1 Hottest 150 | 80 90 78 . . 150 122 39 . 39 . . . . . . 46 46 . . . 46 . . . . . . . . . . 43 . . 43 Shots Fired 610 | 30 149 61 . . 227 103 8 . 1 . . . . . . 8 10 . . . 7 . . . . . . . . . . 5 . . 1 Gun 413 | 30 51 . . . 225 101 . . . . . . . . . 6 . . . . . . . . . . . . . . . . . . . Cannon 156 | . 98 58 . . . . . . . . . . . . . . . . . . . . . . . . . . . . . . . . . Launcher 41 | . . 3 . . 2 2 8 . 1 . . . . . . 2 10 . . . 7 . . . . . . . . . . 5 . . 1 Special . | . . . . . . . . . . . . . . . . . . . . . . . . . . . . . . . . . . . . Kinetic 187 | . 98 58 . . 31 . . . . . . . . . . . . . . . . . . . . . . . . . . . . . . Thermal 376 | 30 50 . . . 189 101 . . . . . . . . . 6 . . . . . . . . . . . . . . . . . . . Explosive 37 | . . 3 . . . . 8 . 1 . . . . . . 2 10 . . . 7 . . . . . . . . . . 5 . . 1 Electromagnetic 10 | . 1 . . . 7 2 . . . . . . . . . . . . . . . . . . . . . . . . . . . . . Robot Hit Streak 20 | 6 18 15 . . 20 15 2 . . . . . . . . 6 . . . . 10 . . . . . . . . . . 12 . . . Robot Miss Streak 6 | 2 6 2 . . 4 2 3 . 1 . . . . . . . . . . . . . . . . . . . . . . 1 . . 1 Penetration Max 1 | . . . . . 1 . . . . . . . . . . . . . . . . . . . . . . . . . . . . . . Secondary Targets 4 | . . . . . 2 2 . . . . . . . . . . . . . . . . . . . . . . . . . . . . . Max Gunslinging Chain 1 | . . . . . 1 1 . . . . . . . . . . . . . . . . . . . . . . . . . . . . . Shots Hit Robots 565 | 20 82 41 . . 146 68 26 . 24 . 2 . 4 24 14 19 1 . 1 1 20 8 9 4 . 6 . 16 6 . . 5 5 8 5 Core Hits 315 | 8 33 18 . 2 73 34 22 . 16 . 2 . 2 13 4 14 12 . . 1 22 2 4 2 . 4 . 8 2 . . 8 2 4 3 Critical Kills 1 | . . . . . . . 1 . . . . . . . . . . . . . . . . . . . . . . . . . . . . Critical Parts Destroyed 6 | . . . . . 2 . 4 . . . . . . . . . . . . . . . . . . . . . . . . . . . . Critical Strikes 31 | . 2 1 . . 12 4 6 . . . . . . 1 1 . . . . . 1 1 . . . . . 2 . . . . . . . Burn 14 | . . . . . 10 4 . . . . . . . . . . . . . . . . . . . . . . . . . . . . . Destroy 2 | . . . . . 2 . . . . . . . . . . . . . . . . . . . . . . . . . . . . . . Blast 3 | . 2 1 . . . . . . . . . . . . . . . . . . . . . . . . . . . . . . . . . Smash 5 | . . . . . . . 5 . . . . . . . . . . . . . . . . . . . . . . . . . . . . Sever 3 | . . . . . . . . . . . . . . . 1 . . . . . . . . . . . . 2 . . . . . . . Impale 4 | . . . . . . . 1 . . . . . . 1 . . . . . . 1 1 . . . . . . . . . . . . . Melee Attacks 585 | . . . . . . 7 84 . 59 . 7 1 4 72 14 50 1 . 14 7 66 8 38 7 1 6 1 56 11 . . 2 13 32 24 Impact 30 | . . . . . . 7 23 . . . . . . . . . . . . . . . . . . . . . . . . . . . . Slashing 444 | . . . . . . . 36 . 59 . 7 1 2 59 14 50 1 . 14 7 16 . 27 6 1 6 1 55 11 . . 2 13 32 24 Piercing 111 | . . . . . . . 25 . . . . . 2 13 . . . . . . 50 8 11 1 . . . 1 . . . . . . . Sneak Attacks 59 | . . . . . . . 14 . 5 . 1 . 3 11 . 7 . . 1 . 8 . 3 . . . . . 1 . . 1 2 1 1 Combat Hostiles 6 | . . . . . . . . . . . 1 . 3 . . . . . . . . . . . . . . . 1 . . 1 . . . Follow-up Attacks 9 | . . . . . . . . . . . . . 1 . . . . . . . . 1 1 . . . . 3 1 . . . . 2 . Damage Inflicted 23219 | 221 1443 1045 . 72 3457 1193 2489 . 1561 . 126 . 297 1602 577 1563 838 . 97 50 1877 294 575 154 . 491 . 749 290 . . 849 364 491 454 Guns 4825 | 221 446 . . . 3032 1060 . . . . . . . . . 66 . . . . . . . . . . . . . . . . . . . Cannons 1839 | . 966 873 . . . . . . . . . . . . . . . . . . . . . . . . . . . . . . . . . Explosions 4659 | . 24 168 . . 388 106 835 . 255 . . . . . . 483 805 . . . 754 . . . . . . . . . . 718 . . 123 Melee 11747 | . . . . . . . 1654 . 1306 . 126 . 297 1602 577 1014 33 . 97 50 1123 294 575 154 . 491 . 749 290 . . 131 364 491 329 Ramming 149 | . 7 4 . 72 37 27 . . . . . . . . . . . . . . . . . . . . . . . . . . . . 2 Kinetic 2418 | . 966 873 . . 579 . . . . . . . . . . . . . . . . . . . . . . . . . . . . . . Thermal 4366 | 221 452 . . . 2567 1060 . . . . . . . . . 66 . . . . . . . . . . . . . . . . . . . Explosive 4141 | . . 168 . . . . 835 . 255 . . . . . . 483 805 . . . 754 . . . . . . . . . . 718 . . 123 Electromagnetic 398 | . 18 . . . 274 106 . . . . . . . . . . . . . . . . . . . . . . . . . . . . . Impact 840 | . . . . . . . 840 . . . . . . . . . . . . . . . . . . . . . . . . . . . . Slashing 8827 | . . . . . . . 282 . 1306 . 126 . 174 1282 577 1014 33 . 97 50 446 . 441 154 . 491 . 749 290 . . 131 364 491 329 Piercing 2080 | . . . . . . . 532 . . . . . 123 320 . . . . . . 677 294 134 . . . . . . . . . . . . Highest Corruption 13 | . 1 1 1 1 . 4 . 7 11 9 9 9 . . . . . . . . 2 2 2 3 3 3 3 1 3 3 3 . . . 13 Average Corruption 2 | . 1 1 1 1 . 3 . 7 8 9 9 9 . . . . . . . . 1 2 2 2 3 3 3 1 2 3 3 . . . 2 Corruption Purged 2 | . . . . . . . . . 2 . . . . . . . . . . . . . . . . . . . . . . . . . . Corruption Blocked . | . . . . . . . . . . . . . . . . . . . . . . . . . . . . . . . . . . . . Effects 165 | . 11 10 3 8 . 4 . . 47 6 14 . . . . . . . . . 12 2 8 4 5 1 10 5 4 9 . . . . 2 Message Errors 44 | . 3 3 1 4 . 1 . . 10 1 3 . . . . . . . . . 2 . 3 . 2 . 5 3 . 2 . . . . 1 Matter Fused 48 | . 4 4 1 2 . 1 . . 13 2 3 . . . . . . . . . 4 2 2 1 1 . 2 . 2 3 . . . . 1 Heat Flow Errors 24 | . 2 1 . 1 . 1 . . 7 2 3 . . . . . . . . . 2 . 1 . . . 2 . . 2 . . . . . Energy Discharges 19 | . 1 1 . . . . . . 7 1 3 . . . . . . . . . . . . 2 1 . 1 1 . 1 . . . . . Parts Rejected 1 | . . . . . . . . . . . . . . . . . . . . . . . . . 1 . . . . . . . . . . Parts Fused 1 | . . . . . . . . . . . . . . . . . . . . . . . . . . . . 1 . . . . . . . Data Loss (minor) 16 | . 1 . 1 1 . 1 . . 7 . . . . . . . . . . . 1 . . 1 . 1 . . 2 . . . . . . Data Loss (major) 5 | . . 1 . . . . . . . . 1 . . . . . . . . . 1 . 2 . . . . . . . . . . . . Alerts 7 | . . . . . . . . . 3 . 1 . . . . . . . . . 2 . . . . . . . . 1 . . . . . Overload Shots . | . . . . . . . . . . . . . . . . . . . . . . . . . . . . . . . . . . . . Overflow Damage 2254 | . 21 19 . . . . 867 . 207 . . . . 277 . 286 20 . . . 220 . 79 . . 7 . 48 18 . . 81 32 50 22 Projectiles 36 | . 17 19 . . . . . . . . . . . . . . . . . . . . . . . . . . . . . . . . . Explosions 211 | . 4 . . . . . 33 . 7 . . . . . . 21 20 . . . 45 . . . . . . . . . . 81 . . . Melee 2007 | . . . . . . . 834 . 200 . . . . 277 . 265 . . . . 175 . 79 . . 7 . 48 18 . . . 32 50 22 Knockbacks 19 | . 6 10 . . . . 3 . . . . . . . . . . . . . . . . . . . . . . . . . . . . Impact 3 | . . . . . . . 3 . . . . . . . . . . . . . . . . . . . . . . . . . . . . Kinetic 14 | . 6 8 . . . . . . . . . . . . . . . . . . . . . . . . . . . . . . . . . Secondary 2 | . . 2 . . . . . . . . . . . . . . . . . . . . . . . . . . . . . . . . . Self-Inflicted Damage 155 | . . 40 . . 43 . . . . . . . . . . . . . . . . . . . . . . . . . . . . . 72 Shots 3 | . . 1 . . 1 . . . . . . . . . . . . . . . . . . . . . . . . . . . . . 1 Rammed 32 | . 1 2 . 13 8 6 . . . . . . . . . . . . . . . . . . . . . . . . . . . . 2 Targets Rammed 33 | . 1 2 . 14 8 6 . . . . . . . . . . . . . . . . . . . . . . . . . . . . 2 Kicked . | . . . . . . . . . . . . . . . . . . . . . . . . . . . . . . . . . . . . Crushed 1 | . . . . 1 . . . . . . . . . . . . . . . . . . . . . . . . . . . . . . . Highest Temperature 327 | 144 252 297 . 148 327 144 60 177 252 245 172 . 98 18 . 289 . . 47 . 310 160 119 114 . . 149 98 2 216 . 12 . . 76 Average Temperature 65 | 58 55 80 . 81 67 31 23 83 84 116 98 . 46 10 . 92 . . 27 . 93 80 46 46 . . 79 36 2 82 . 10 . . 33 Received Heat Transfer 1865 | . 165 168 . . 972 282 80 . 12 . . . . 84 . 9 . . . . 9 . . . . . . 21 . 18 . . 9 . 36 Effects 1 | . 1 . . . . . . . . . . . . . . . . . . . . . . . . . . . . . . . . . . Interference 1 | . 1 . . . . . . . . . . . . . . . . . . . . . . . . . . . . . . . . . . Siege Activations . | . . . . . . . . . . . . . . . . . . . . . . . . . . . . . . . . . . . . Robots Corrupted 4 | . . . . . . . 4 . . . . . . . . . . . . . . . . . . . . . . . . . . . . Combat Hostiles . | . . . . . . . . . . . . . . . . . . . . . . . . . . . . . . . . . . . . Parts Fried 10 | . . . . . . . 10 . . . . . . . . . . . . . . . . . . . . . . . . . . . . Impact Corruptions 21 | . . . . . . . 21 . . . . . . . . . . . . . . . . . . . . . . . . . . . . Robots Melted 1 | . . . . . . 1 . . . . . . . . . . . . . . . . . . . . . . . . . . . . . Combat Hostiles 1 | . . . . . . 1 . . . . . . . . . . . . . . . . . . . . . . . . . . . . . Parts Melted 29 | 1 1 . . . 15 12 . . . . . . . . . . . . . . . . . . . . . . . . . . . . . Heat Transferred 10129 | 500 1167 . . . 5465 2812 . . . . . . . . . 185 . . . . . . . . . . . . . . . . . . . Parts Sabotaged . | . . . . . . . . . . . . . . . . . . . . . . . . . . . . . . . . . . . . Parts Stolen 2 | . . . . . . . . . . . 2 . . . . . . . . . . . . . . . . . . . . . . . . Parts Stripped . | . . . . . . . . . . . . . . . . . . . . . . . . . . . . . . . . . . . . Power Chain Reactions 4 | . 1 . . . 2 1 . . . . . . . . . . . . . . . . . . . . . . . . . . . . . Alert | -11 -10 -10 -10 -9 -8 -8 -7 -7 -7 -7 -7 -7 -6 -6 -6 -6 -6 -6 -6 -5 -5 -5 -5 -5 -5 -5 -4 -4 -4 -4 -4 -3 -3 -3 -3 ------- Run | Yrd Mat Min Exi Min Mat Sto Fac Was Fac Low Low Zio Pro Fac Was Fac Low Low Dat Pro Fac Was Fac Upp Upp Zhi Pro Fac Upp Upp War Pro Res Qua Sec Peak Influence 532 | 35 383 171 . 5 532 454 288 149 336 . . . . 145 11 253 . . . . 440 112 234 . . . . 443 . . . . 230 309 385 Initial 302 | . 22 28 . . . 222 47 89 104 . . . . . 11 . . . . . 302 112 78 . . . . . . . . . 74 129 36 Average 147 | 14 150 40 . 1 227 250 141 109 197 . . . . 49 8 114 . . . . 221 112 120 . . . . 184 . . . . 150 171 227 Maximum Alert Level 2 | . 1 . . . 2 2 1 . 1 . . . . . . 1 . . . . 2 . 1 . . . . 2 . . . . 1 1 1 Low Security (%) 69 | 100 77 100 . 100 51 38 79 100 39 . . . . 100 100 82 . . . . 41 100 93 . . . . 61 . . . . 79 64 34 Level 1 25 | . 22 . . . 29 51 20 . 60 . . . . . . 17 . . . . 51 . 6 . . . . 35 . . . . 20 35 65 Level 2 4 | . . . . . 18 10 . . . . . . . . . . . . . . 7 . . . . . . 3 . . . . . . . Level 3 . | . . . . . . . . . . . . . . . . . . . . . . . . . . . . . . . . . . . . Level 4 . | . . . . . . . . . . . . . . . . . . . . . . . . . . . . . . . . . . . . Level 5 . | . . . . . . . . . . . . . . . . . . . . . . . . . . . . . . . . . . . . High Security . | . . . . . . . . . . . . . . . . . . . . . . . . . . . . . . . . . . . . Max Security . | . . . . . . . . . . . . . . . . . . . . . . . . . . . . . . . . . . . . Squads Dispatched 62 | . 2 1 . . 4 1 6 . 11 . . . . 6 . 7 . . . . 5 . 3 . . . . 5 . 1 . . 1 2 7 Investigation 29 | . . . . . . . 2 . 8 . . . . 4 . 6 . . . . 3 . 3 . . . . 2 . . . . 1 . . Extermination 10 | . . . . . . . 1 . 2 . . . . 2 . 1 . . . . 2 . . . . . . 1 . . . . . . 1 Reinforcement 19 | . 2 . . . 4 1 3 . 1 . . . . . . . . . . . . . . . . . . 2 . . . . . 2 4 Assault 2 | . . 1 . . . . . . . . . . . . . . . . . . . . . . . . . . . 1 . . . . . Garrison . | . . . . . . . . . . . . . . . . . . . . . . . . . . . . . . . . . . . . Intercept 2 | . . . . . . . . . . . . . . . . . . . . . . . . . . . . . . . . . . . 2 Searches Triggered 1 | . . . . . . . . . . . . . . . . . . . . . . . . . . . . 1 . . . . . . . Construction Impeded 3 | . . . . . 1 . 2 . . . . . . . . . . . . . . . . . . . . . . . . . . . . Haulers Reinforced . | . . . . . . . . . . . . . . . . . . . . . . . . . . . . . . . . . . . . Active Scanning Responses . | . . . . . . . . . . . . . . . . . . . . . . . . . . . . . . . . . . . . Cargo Convoy Interrupts . | . . . . . . . . . . . . . . . . . . . . . . . . . . . . . . . . . . . . Stealth | -11 -10 -10 -10 -9 -8 -8 -7 -7 -7 -7 -7 -7 -6 -6 -6 -6 -6 -6 -6 -5 -5 -5 -5 -5 -5 -5 -4 -4 -4 -4 -4 -3 -3 -3 -3 --------- Run | Yrd Mat Min Exi Min Mat Sto Fac Was Fac Low Low Zio Pro Fac Was Fac Low Low Dat Pro Fac Was Fac Upp Upp Zhi Pro Fac Upp Upp War Pro Res Qua Sec Distress Signals 25 | . 6 . . . 5 1 1 . 2 . . . . 1 . 1 . . . . 3 . . . . . . 3 . . . . . . 2 Communications Jammed 55 | . . . . . . . 3 . 1 . . . . 5 . . . . . 2 . . . . . . . 5 . . 2 1 18 . 18 Distress Signals 52 | . . . . . . . 3 . 1 . . . . 5 . . . . . . . . . . . . . 5 . . 2 . 18 . 18 Times Spotted 360 | . 35 20 . . 56 27 22 5 19 . 1 . 5 16 1 20 1 . 3 2 27 . 5 1 . . . 29 3 3 4 8 8 5 34 Peak Tracking Total 16 | . 7 4 . . 7 4 4 5 5 . 1 . 4 4 1 4 4 . 3 2 10 . 2 1 . . . 12 2 2 3 7 5 2 16 Tactical Retreats 62 | . 7 4 . . 9 . 3 . 4 . . . 1 3 . 7 . . . . 8 . 1 . . . . 11 . 2 . . 1 . 1 Traps | -11 -10 -10 -10 -9 -8 -8 -7 -7 -7 -7 -7 -7 -6 -6 -6 -6 -6 -6 -6 -5 -5 -5 -5 -5 -5 -5 -4 -4 -4 -4 -4 -3 -3 -3 -3 ------- Run | Yrd Mat Min Exi Min Mat Sto Fac Was Fac Low Low Zio Pro Fac Was Fac Low Low Dat Pro Fac Was Fac Upp Upp Zhi Pro Fac Upp Upp War Pro Res Qua Sec Traps Triggered 19 | . 2 . . . . . 5 . 6 . . . . 1 . 4 . . . . 1 . . . . . . . . . . . . . . Indirectly . | . . . . . . . . . . . . . . . . . . . . . . . . . . . . . . . . . . . . Trap Hack Attempts . | . . . . . . . . . . . . . . . . . . . . . . . . . . . . . . . . . . . . Triggered . | . . . . . . . . . . . . . . . . . . . . . . . . . . . . . . . . . . . . Disarmed . | . . . . . . . . . . . . . . . . . . . . . . . . . . . . . . . . . . . . Reprogrammed . | . . . . . . . . . . . . . . . . . . . . . . . . . . . . . . . . . . . . Reused . | . . . . . . . . . . . . . . . . . . . . . . . . . . . . . . . . . . . . Traps Extracted . | . . . . . . . . . . . . . . . . . . . . . . . . . . . . . . . . . . . . Installed . | . . . . . . . . . . . . . . . . . . . . . . . . . . . . . . . . . . . . Triggered 7 | . . . . . . . . . . . . . . . . . 2 . . . . . . 1 . . . . . . 4 . . . . Machines | -11 -10 -10 -10 -9 -8 -8 -7 -7 -7 -7 -7 -7 -6 -6 -6 -6 -6 -6 -6 -5 -5 -5 -5 -5 -5 -5 -4 -4 -4 -4 -4 -3 -3 -3 -3 ---------- Run | Yrd Mat Min Exi Min Mat Sto Fac Was Fac Low Low Zio Pro Fac Was Fac Low Low Dat Pro Fac Was Fac Upp Upp Zhi Pro Fac Upp Upp War Pro Res Qua Sec Machines Disabled 28 | . 5 . . . 2 4 2 . 1 . 1 . . 1 . 3 . . 1 . 2 . 2 . . . . . . . . . . 3 1 Max in Single Turn 1 | . 1 . . . 1 1 1 . 1 . 1 . . 1 . 1 . . 1 . 1 . 1 . . . . . . . . . . 1 1 Garrison Access 8 | . . . . . . . 1 . 2 . . . . . . 1 . . . . 1 . 1 . . . . 1 . . . . 1 . . Machines Repaired . | . . . . . . . . . . . . . . . . . . . . . . . . . . . . . . . . . . . . Machines Dismantled . | . . . . . . . . . . . . . . . . . . . . . . . . . . . . . . . . . . . . Machines Sabotaged . | . . . . . . . . . . . . . . . . . . . . . . . . . . . . . . . . . . . . Overloaded Fab Kills . | . . . . . . . . . . . . . . . . . . . . . . . . . . . . . . . . . . . . Hacking | -11 -10 -10 -10 -9 -8 -8 -7 -7 -7 -7 -7 -7 -6 -6 -6 -6 -6 -6 -6 -5 -5 -5 -5 -5 -5 -5 -4 -4 -4 -4 -4 -3 -3 -3 -3 --------- Run | Yrd Mat Min Exi Min Mat Sto Fac Was Fac Low Low Zio Pro Fac Was Fac Low Low Dat Pro Fac Was Fac Upp Upp Zhi Pro Fac Upp Upp War Pro Res Qua Sec Machines Accessed 199 | . 7 1 1 . 10 8 25 . 25 . . . . 15 . 20 1 2 4 . 18 . 13 . . 8 . 15 1 . 1 . 6 12 6 Terminals 118 | . 6 1 . . 8 7 16 . 12 . . . . 6 . 13 . . . . 12 . 7 . . . . 9 1 . . . 4 10 6 Fabricators 32 | . . . . . . . 6 . 6 . . . . 6 . 4 . . . . 4 . 3 . . . . 2 . . . . 1 . . Repair Stations 17 | . 1 . . . 1 . 1 . 4 . . . . 2 . 2 . . . . . . 2 . . . . 2 . . . . . 2 . Recycling Units 1 | . . . . . . . 1 . . . . . . . . . . . . . . . . . . . . . . . . . . . . Scanalyzers 2 | . . . . . 1 . . . . . . . . . . . . . . . . . . . . . . 1 . . . . . . . Garrison Access 12 | . . . . . . 1 1 . 3 . . . . 1 . 1 . . . . 2 . 1 . . . . 1 . . . . 1 . . Total Hacks 605 | . 28 2 1 . 24 24 65 . 76 . . . . 40 . 60 1 8 26 . 54 . 41 . . 47 . 43 2 . 1 . 10 33 19 Successful 420 | . 16 1 1 . 15 12 43 . 45 . . . . 23 . 40 1 8 26 . 35 . 26 . . 47 . 33 2 . 1 . 6 27 12 Failed 183 | . 12 1 . . 9 12 21 . 31 . . . . 17 . 20 . . . . 18 . 15 . . . . 10 . . . . 4 6 7 Catastrophic 23 | . . 1 . . 2 . 1 . 6 . . . . . . 3 . . . . 3 . 3 . . . . 3 . . . . . 1 . Database Lockouts 2 | . . . . . . . 1 . . . . . . . . . . . . . 1 . . . . . . . . . . . . . . Manual 254 | . 24 2 . . 15 11 31 . 37 . . . . 14 . 28 . . . . 27 . 14 . . . . 20 . . 1 . 4 17 9 Terminals 347 | . 26 2 . . 17 22 44 . 44 . . . . 18 . 38 . . . . 38 . 21 . . . . 24 2 . . . 6 26 19 Fabricators 84 | . . . . . . . 14 . 15 . . . . 14 . 10 . . . . 11 . 13 . . . . 5 . . . . 2 . . Repair Stations 60 | . 2 . . . 5 . 2 . 11 . . . . 7 . 11 . . . . . . 6 . . . . 9 . . . . . 7 . Recycling Units 3 | . . . . . . . 3 . . . . . . . . . . . . . . . . . . . . . . . . . . . . Scanalyzers 3 | . . . . . 2 . . . . . . . . . . . . . . . . . . . . . . 1 . . . . . . . Garrison Access 24 | . . . . . . 2 2 . 6 . . . . 1 . 1 . . . . 5 . 1 . . . . 4 . . . . 2 . . Terminal Hacks 224 | . 8 1 1 . 2 8 18 . 12 . . . . 7 . 12 1 8 26 . 15 . 10 . . 47 . 10 2 . 1 . 3 20 12 Record 62 | . . . 1 . . . . . . . . . . . . . . 7 11 . . . . . . 35 . . 2 . . . . 4 2 Part Schematic 25 | . . . . . . 1 2 . 2 . . . . 1 . 2 . . 8 . 2 . 2 . . 4 . 1 . . . . . . . Robot Schematic 4 | . . . . . . . . . . . . . . . . . . . 4 . . . . . . . . . . . . . . . . Robot Analysis 8 | . 4 . . . . . . . . . . . . . . . . . . . . . . . . 4 . . . . . . . . . Prototype ID Bank 7 | . . . . . . . . . . . . . . . . . . . 3 . . . . . . 4 . . . . . . . . . Open Door 9 | . . . . . . 3 . . . . . . . . . 1 1 1 . . . . . . . . . . . . 1 . 1 . 1 Level Access Points 3 | . . . . . . . . . . . . . . . . . . . . . . . . . . . . . . . . . . 1 2 Branch Access Points 6 | . . . . . . . 1 . 1 . . . . . . 1 . . . . . . 1 . . . . 1 . . . . . 1 . Machine Index 2 | . . . . . . . . . . . . . . . . . . . . . . . 1 . . . . . . . . . . . 1 Terminal Index 11 | . . . . . . 1 1 . 1 . . . . 1 . 1 . . . . 1 . 1 . . . . 1 . . . . . 2 1 Fabricator Index 3 | . . . . . . . 1 . . . . . . . . . . . . . 1 . . . . . . 1 . . . . . . . Repair Station Index 1 | . . . . . . . . . . . . . . . . . . . . . 1 . . . . . . . . . . . . . . Alert Level 16 | . 1 1 . . 1 1 2 . 1 . . . . 1 . 1 . . . . 2 . . . . . . 2 . . . . 1 1 1 Unreport Threat 14 | . 1 . . . . 2 . . 3 . . . . . . . . . . . 4 . . . . . . . . . . . . 4 . Locate Traps 14 | . 2 . . . . . 5 . 2 . . . . 1 . 1 . . . . . . 1 . . . . . . . . . . 2 . Dispatch Records 3 | . . . . . . . 1 . . . . . . . . . . . . . . . . . . . . 2 . . . . . . . Patrol Status 6 | . . . . . . . . . . . . . . 1 . 1 . . . . 1 . 1 . . . . . . . . . . 1 1 Recall Investigation 9 | . . . . . . . . . 1 . . . . . . 2 . . . . 2 . 2 . . . . 1 . . . . 1 . . Recall Extermination 6 | . . . . . . . 1 . . . . . . 2 . 1 . . . . 1 . . . . . . 1 . . . . . . . Recall Reinforcements 1 | . . . . . . . . . . . . . . . . . . . . . . . . . . . . . . . . . . . 1 Hauler Manifests 6 | . . . . . 1 . 2 . 1 . . . . . . . . . . . . . 1 . . . . . . . . . . 1 . Registered Components 2 | . . . . . . . 1 . . . . . . . . . . . . . . . . . . . . . . . . . . 1 . Zone Layout 6 | . . . . . . . 1 . . . . . . . . 1 . . . . . . . . . . . . . . . . . 2 2 Fabricator Hacks 61 | . . . . . . . 9 . 12 . . . . 9 . 9 . . . . 8 . 7 . . . . 5 . . . . 2 . . Network Status 6 | . . . . . . . 1 . 2 . . . . 1 . 1 . . . . 1 . . . . . . . . . . . . . . Load Schematic 33 | . . . . . . . 6 . 7 . . . . 4 . 4 . . . . 4 . 4 . . . . 3 . . . . 1 . . Build 22 | . . . . . . . 2 . 3 . . . . 4 . 4 . . . . 3 . 3 . . . . 2 . . . . 1 . . Repair Station Hacks 43 | . 1 . . . 3 . 2 . 8 . . . . 3 . 8 . . . . . . 5 . . . . 8 . . . . . 5 . Scan Component 24 | . 1 . . . 2 . 1 . 4 . . . . 2 . 4 . . . . . . 3 . . . . 4 . . . . . 3 . Repair 19 | . . . . . 1 . 1 . 4 . . . . 1 . 4 . . . . . . 2 . . . . 4 . . . . . 2 . Recycling Unit Hacks 1 | . . . . . . . 1 . . . . . . . . . . . . . . . . . . . . . . . . . . . . Retrieve Components 1 | . . . . . . . 1 . . . . . . . . . . . . . . . . . . . . . . . . . . . . Scanalyzer 3 | . . . . . 2 . . . . . . . . . . . . . . . . . . . . . . 1 . . . . . . . Insert Component 2 | . . . . . 1 . . . . . . . . . . . . . . . . . . . . . . 1 . . . . . . . Analyze 1 | . . . . . 1 . . . . . . . . . . . . . . . . . . . . . . . . . . . . . . Garrison Access Hacks 8 | . . . . . . . 1 . 2 . . . . . . 1 . . . . 1 . 1 . . . . 1 . . . . 1 . . Seal Access 8 | . . . . . . . 1 . 2 . . . . . . 1 . . . . 1 . 1 . . . . 1 . . . . 1 . . Unauthorized Hacks 80 | . 7 . . . 8 4 12 . 11 . . . . 4 . 10 . . . . 11 . 3 . . . . 8 . . . . . 2 . Terminals 73 | . 7 . . . 8 4 8 . 9 . . . . 4 . 10 . . . . 10 . 3 . . . . 8 . . . . . 2 . Assimilate 11 | . . . . . . . 1 . 2 . . . . 1 . 3 . . . . 3 . 1 . . . . . . . . . . . . Botnet 20 | . 2 . . . 2 1 2 . 3 . . . . 1 . 2 . . . . 2 . . . . . . 3 . . . . . 2 . Operators 1 | . . . . . . . . . . . . . . 1 . . . . . . . . . . . . . . . . . . . . . Skim 41 | . 5 . . . 6 3 5 . 4 . . . . 1 . 5 . . . . 5 . 2 . . . . 5 . . . . . . . Fabricators 5 | . . . . . . . 2 . 2 . . . . . . . . . . . 1 . . . . . . . . . . . . . . Recompile 5 | . . . . . . . 2 . 2 . . . . . . . . . . . 1 . . . . . . . . . . . . . . Repair Stations . | . . . . . . . . . . . . . . . . . . . . . . . . . . . . . . . . . . . . Recycling Units 2 | . . . . . . . 2 . . . . . . . . . . . . . . . . . . . . . . . . . . . . Recyclers 1 | . . . . . . . 1 . . . . . . . . . . . . . . . . . . . . . . . . . . . . Mask 1 | . . . . . . . 1 . . . . . . . . . . . . . . . . . . . . . . . . . . . . Scanalyzers . | . . . . . . . . . . . . . . . . . . . . . . . . . . . . . . . . . . . . Garrison Access . | . . . . . . . . . . . . . . . . . . . . . . . . . . . . . . . . . . . . Data Cores Recovered 5 | . . . . . . . 1 . . . . . . . . 3 . . . . . . . . . . . . . . . . 1 . . Used 2 | . . . . . . . . . . . . . . . . 2 . . . . . . . . . . . . . . . . . . . Hacking Detections 134 | . 7 1 . . 7 4 20 . 19 . . . . 13 . 15 . . . . 11 . 12 . . . . 12 . . . . 3 5 5 Full Trace Events 22 | . . . . . . . . . 5 . . . . 4 . 5 . . . . 2 . 3 . . . . 2 . . . . 1 . . Feedback Events . | . . . . . . . . . . . . . . . . . . . . . . . . . . . . . . . . . . . . Feedback Blocked . | . . . . . . . . . . . . . . . . . . . . . . . . . . . . . . . . . . . . Robot Schematics Acquired 13 | . . . . . . . . . . . . 4 . . . . . . 4 . . . . . . . . . . . . . . 4 1 Robots Built . | . . . . . . . . . . . . . . . . . . . . . . . . . . . . . . . . . . . . Authchips . | . . . . . . . . . . . . . . . . . . . . . . . . . . . . . . . . . . . . Time . | . . . . . . . . . . . . . . . . . . . . . . . . . . . . . . . . . . . . Total Robot Build Rating . | . . . . . . . . . . . . . . . . . . . . . . . . . . . . . . . . . . . . Part Schematics Acquired 45 | . . . . . 1 1 2 . 2 . . 14 . 1 . 2 . . 8 . 2 . 2 . . 4 . 1 . . . . . 2 3 Parts Built 25 | . . . . . . . 2 . 3 . . . . 4 . 4 . . . . 4 . 5 . . . . 2 . . . . 1 . . Authchips 6 | . . . . . . . 2 . 2 . . . . 1 . . . . . . 1 . . . . . . . . . . . . . . Time 1403 | . . . . . . . 88 . 183 . . . . 340 . 226 . . . . 204 . 198 . . . . 125 . . . . 39 . . Total Part Build Rating 136 | . . . . . . . 8 . 13 . . . . 22 . 22 . . . . 21 . 32 . . . . 11 . . . . 7 . . Parts Repaired 19 | . . . . . 1 . 1 . 4 . . . . 1 . 4 . . . . . . 2 . . . . 4 . . . . . 2 . Time 924 | . . . . . 136 . 30 . 114 . . . . 35 . 318 . . . . . . 105 . . . . 101 . . . . . 85 . Parts Recycled . | . . . . . . . . . . . . . . . . . . . . . . . . . . . . . . . . . . . . Recycled Matter . | . . . . . . . . . . . . . . . . . . . . . . . . . . . . . . . . . . . . Retrieved Matter . | . . . . . . . . . . . . . . . . . . . . . . . . . . . . . . . . . . . . Retrieved Components . | . . . . . . . . . . . . . . . . . . . . . . . . . . . . . . . . . . . . Parts Scanalyzed 1 | . . . . . 1 . . . . . . . . . . . . . . . . . . . . . . . . . . . . . . Part Schematics Acquired 1 | . . . . . 1 . . . . . . . . . . . . . . . . . . . . . . . . . . . . . . Parts Damaged . | . . . . . . . . . . . . . . . . . . . . . . . . . . . . . . . . . . . . Bothacking | -11 -10 -10 -10 -9 -8 -8 -7 -7 -7 -7 -7 -7 -6 -6 -6 -6 -6 -6 -6 -5 -5 -5 -5 -5 -5 -5 -4 -4 -4 -4 -4 -3 -3 -3 -3 ------------ Run | Yrd Mat Min Exi Min Mat Sto Fac Was Fac Low Low Zio Pro Fac Was Fac Low Low Dat Pro Fac Was Fac Upp Upp Zhi Pro Fac Upp Upp War Pro Res Qua Sec Used RIF Installer . | . . . . . . . . . . . . . . . . . . . . . . . . . . . . . . . . . . . . Robots Hacked . | . . . . . . . . . . . . . . . . . . . . . . . . . . . . . . . . . . . . Non-combat . | . . . . . . . . . . . . . . . . . . . . . . . . . . . . . . . . . . . . Combat . | . . . . . . . . . . . . . . . . . . . . . . . . . . . . . . . . . . . . Robot Hacks Applied . | . . . . . . . . . . . . . . . . . . . . . . . . . . . . . . . . . . . . Relay Couplers Released . | . . . . . . . . . . . . . . . . . . . . . . . . . . . . . . . . . . . . Fabnet Peak Effective % . | . . . . . . . . . . . . . . . . . . . . . . . . . . . . . . . . . . . . Robots Rewired 10 | . . . . . . . 1 . . . 3 . . 1 . . . . . . . . . . . . . . . . 5 . . . . Allies Hacked 1 | . . . . . . . . . 1 . . . . . . . . . . . . . . . . . . . . . . . . . . Hacks Repelled . | . . . . . . . . . . . . . . . . . . . . . . . . . . . . . . . . . . . . Allies | -11 -10 -10 -10 -9 -8 -8 -7 -7 -7 -7 -7 -7 -6 -6 -6 -6 -6 -6 -6 -5 -5 -5 -5 -5 -5 -5 -4 -4 -4 -4 -4 -3 -3 -3 -3 -------- Run | Yrd Mat Min Exi Min Mat Sto Fac Was Fac Low Low Zio Pro Fac Was Fac Low Low Dat Pro Fac Was Fac Upp Upp Zhi Pro Fac Upp Upp War Pro Res Qua Sec Total Allies 42 | . . 3 . 3 . . 2 . 2 . 3 . . 2 20 . . . . . 2 . . . . . . . . . 5 . . . . Largest Group 20 | . . 2 . 3 3 . 1 . 1 . 3 3 3 2 20 . . . . . 1 . . . . . . . . . 5 . . . . Highest-Rated Group 744 | . . 49 . 40 40 . 32 . 26 . 93 93 93 72 744 . . . . . 10 . . . . . . . . . 256 . . . . Highest-Rated Ally 56 | . . 31 . 16 16 . 32 . 26 . 31 31 31 41 46 . . . . . 10 . . . . . . . . . 56 . . . . Total Orders 2 | . . . . . . . 2 . . . . . . . . . . . . . . . . . . . . . . . . . . . . STAY 1 | . . . . . . . 1 . . . . . . . . . . . . . . . . . . . . . . . . . . . . FOLLOW 1 | . . . . . . . 1 . . . . . . . . . . . . . . . . . . . . . . . . . . . . Ally Attacks 136 | . . 11 . . 40 . 2 . . . 9 . 28 6 27 . . . . . . . . . . . . . . . 13 . . . . Total Damage 2402 | . . 202 . . 422 . 112 . . . 106 . 435 226 559 . . . . . . . . . . . . . . . 340 . . . . Kills 21 | . . 1 . . 4 . . . . . 3 . 6 2 1 . . . . . . . . . . . . . . . 4 . . . . Allies Corrupted . | . . . . . . . . . . . . . . . . . . . . . . . . . . . . . . . . . . . . Allies Melted . | . . . . . . . . . . . . . . . . . . . . . . . . . . . . . . . . . . . . Intel | -11 -10 -10 -10 -9 -8 -8 -7 -7 -7 -7 -7 -7 -6 -6 -6 -6 -6 -6 -6 -5 -5 -5 -5 -5 -5 -5 -4 -4 -4 -4 -4 -3 -3 -3 -3 ------- Run | Yrd Mat Min Exi Min Mat Sto Fac Was Fac Low Low Zio Pro Fac Was Fac Low Low Dat Pro Fac Was Fac Upp Upp Zhi Pro Fac Upp Upp War Pro Res Qua Sec Robot Analysis Total 8 | . 4 . . . . . . . . . . . . . . . . . . . . . . . . 4 . . . . . . . . . Derelict Logs Recovered 18 | . . 1 . 1 . . . . . 2 1 1 . . . . 3 1 . . . . . 2 2 . 1 . 1 2 . . . . . Drone Launches . | . . . . . . . . . . . . . . . . . . . . . . . . . . . . . . . . . . . . Drone Recoveries . | . . . . . . . . . . . . . . . . . . . . . . . . . . . . . . . . . . . . Exploration | -11 -10 -10 -10 -9 -8 -8 -7 -7 -7 -7 -7 -7 -6 -6 -6 -6 -6 -6 -6 -5 -5 -5 -5 -5 -5 -5 -4 -4 -4 -4 -4 -3 -3 -3 -3 ------------- Run | Yrd Mat Min Exi Min Mat Sto Fac Was Fac Low Low Zio Pro Fac Was Fac Low Low Dat Pro Fac Was Fac Upp Upp Zhi Pro Fac Upp Upp War Pro Res Qua Sec Turns Passed 26523 | 130 1868 1447 772 1487 2983 1706 1474 36 1544 149 385 608 545 1496 534 1643 222 120 79 103 1585 84 814 351 196 142 468 1274 202 406 273 497 137 476 287 Spaces Moved 32495 | 77 819 547 321 603 975 536 3288 120 2978 571 467 1091 489 2056 392 2701 610 438 135 329 3705 251 1306 582 428 207 479 1868 458 629 541 434 332 998 734 Core 53 | 3 . . . . . . . . 26 . . . . . . . . . . . . . . . . . . . . . . . . . 24 Treads 3376 | . 394 547 321 603 975 536 . . . . . . . . . . . . . . . . . . . . . . . . . . . . . Legs . | . . . . . . . . . . . . . . . . . . . . . . . . . . . . . . . . . . . . Wheels 499 | 74 425 . . . . . . . . . . . . . . . . . . . . . . . . . . . . . . . . . . Hover . | . . . . . . . . . . . . . . . . . . . . . . . . . . . . . . . . . . . . Flight 28567 | . . . . . . . 3288 120 2952 571 467 1091 489 2056 392 2701 610 438 135 329 3705 251 1306 582 428 207 479 1868 458 629 541 434 332 998 710 Fastest Speed 5 | 50 80 240 240 240 240 225 20 20 17 14 14 26 14 14 27 14 26 26 14 26 5 17 17 17 27 27 27 17 15 17 27 17 15 15 15 Average Speed 49 | 82 164 240 240 240 240 237 25 20 27 25 25 26 25 29 27 25 26 26 24 26 25 25 26 26 27 27 27 25 25 26 27 26 25 24 25 Slowest Speed 240 | 90 240 240 240 240 240 240 26 20 200 26 26 26 26 102 95 94 26 26 26 26 27 27 27 27 27 27 27 27 27 27 27 27 27 25 100 Overloaded Moves 850 | . . . . . . . 42 120 62 4 1 . 17 23 . 128 . . 17 . 72 30 7 28 . . . 150 16 28 . 14 9 20 62 Propulsion Burnouts . | . . . . . . . . . . . . . . . . . . . . . . . . . . . . . . . . . . . . Robots Hopped 77 | . . . . . . . 4 . 3 . . . . 13 1 22 . . . . 8 1 4 . . . . 14 . . 3 . . 2 2 Cave-ins Triggered . | . . . . . . . . . . . . . . . . . . . . . . . . . . . . . . . . . . . . Teleports 2 | . . . . . . . . . . . . . . . . . . . . . . . . . . . . . 1 . . . . . 1 Exploration Rate (%) 67 | 4 98 89 73 99 87 81 73 88 64 74 64 85 60 51 95 50 82 54 80 58 69 96 25 70 63 62 65 42 64 81 72 65 13 81 42 Regions Visited 35 Branch Regions 22 Pre-discovered Areas 17 | . 2 1 1 . 1 . 2 . . . . . . . . 1 . . 1 . 3 . . 1 1 3 . . . . . . . . . Known Exits Taken 23 | . . . . . . 1 . . 1 1 1 1 1 . . 1 1 1 1 1 . . 1 1 1 1 1 1 1 1 1 1 1 1 . Unknown Exits Taken 6 | 1 1 1 1 1 1 . . . . . . . . . . . . . . . . . . . . . . . . . . . . . . Scrap Searched 29 | . . 1 . 2 . . . . . 2 1 3 2 . . . 5 1 . 1 . . . 2 3 . . . . 5 . 1 . . . Spaces Dug 269 | . . 2 . . . 6 52 . 26 . 2 . . 36 . 31 . . . . 35 . 20 1 1 . 1 27 . . . . 6 12 11 Terrain Destroyed 644 | . 7 39 . . 15 9 91 . 38 . 2 . . 36 . 43 131 . . . 84 . 20 1 1 . 1 27 . . . 57 6 12 24 Melee 267 | . . . . . . 6 52 . 26 . 2 . . 36 . 31 . . . . 35 . 20 1 1 . 1 27 . . . . 6 12 11 Projectile 10 | . 4 6 . . . . . . . . . . . . . . . . . . . . . . . . . . . . . . . . . AOE 367 | . 3 33 . . 15 3 39 . 12 . . . . . . 12 131 . . . 49 . . . . . . . . . . 57 . . 13 Terrain Rammed . | . . . . . . . . . . . . . . . . . . . . . . . . . . . . . . . . . . . . Walls Destroyed . | . . . . . . . . . . . . . . . . . . . . . . . . . . . . . . . . . . . . Machines Disabled . | . . . . . . . . . . . . . . . . . . . . . . . . . . . . . . . . . . . . Actions | -11 -10 -10 -10 -9 -8 -8 -7 -7 -7 -7 -7 -7 -6 -6 -6 -6 -6 -6 -6 -5 -5 -5 -5 -5 -5 -5 -4 -4 -4 -4 -4 -3 -3 -3 -3 --------- Run | Yrd Mat Min Exi Min Mat Sto Fac Was Fac Low Low Zio Pro Fac Was Fac Low Low Dat Pro Fac Was Fac Upp Upp Zhi Pro Fac Upp Upp War Pro Res Qua Sec Total 41333 | 108 1190 615 327 623 1396 843 3761 131 3598 571 717 1413 902 2823 801 3546 663 443 159 335 4249 256 1714 767 505 284 815 2570 527 868 664 804 366 1181 798 Wait 7029 | . 225 19 1 . 178 163 267 11 487 1 217 299 409 662 369 739 15 6 11 . 409 . 363 177 71 55 336 640 56 226 93 362 12 136 14 Move 32314 | 76 818 546 320 602 974 535 3281 119 2971 570 466 1090 488 2031 389 2657 609 437 134 328 3689 248 1297 581 427 206 478 1840 457 628 535 433 331 993 730 Hop 72 | . . . . . . . 3 . 3 . . . . 12 1 21 . . . . 8 1 4 . . . . 13 . . 2 . . 2 2 Pick Up 121 | 7 25 3 1 1 33 5 13 1 6 . 1 2 1 6 1 1 1 . . . 3 . 2 . 1 2 . 2 . . 1 . . 2 . Fast Attach 176 | 7 3 . . . 8 12 12 . 14 . 1 10 . 8 8 12 7 . . . 19 . 5 . 3 6 . 12 . 3 9 . 2 10 5 Attach 68 | . 1 1 2 1 11 . 15 . 6 . 1 . . 3 . 1 4 . . . 6 . . . 1 . . 1 1 4 . . 3 2 4 Detach 48 | . . . 1 1 3 . 7 . 4 . . 2 . 4 1 1 4 . . . 5 . 1 . . . . . . 4 2 . 2 3 3 Swap 211 | 2 25 9 . 4 28 35 15 . 30 . 3 . . 12 1 7 3 . . . 14 . 3 3 . 1 . 7 3 1 2 2 . . 1 Drop 264 | 1 16 3 2 . 37 27 39 . 7 . . 9 1 11 17 13 9 . . . 24 . 6 . 1 8 . 10 . 2 10 . 3 4 4 Fire 332 | 15 76 32 . . 116 53 8 . 1 . . . . . . 8 10 . . . 7 . . . . . . . . . . 5 . . 1 Melee 555 | . . . . . . 7 84 . 59 . 7 1 3 72 14 50 1 . 14 7 65 7 33 6 1 6 1 45 10 . . 2 13 26 21 Ram 2 | . . . . . . . . . . . . . . . . . . . . . . . . . . . . . . . . . . . 2 Kick . | . . . . . . . . . . . . . . . . . . . . . . . . . . . . . . . . . . . . Crush 31 | . 1 2 . 14 8 6 . . . . . . . . . . . . . . . . . . . . . . . . . . . . . Escape Stasis 76 | . . . . . . . 16 . 10 . . . . . . 36 . . . . . . . . . . . . . . . . . 3 11 Rewire 34 | . . . . . . . 1 . . . 21 . . 2 . . . . . . . . . . . . . . . . 10 . . . . Trap . | . . . . . . . . . . . . . . . . . . . . . . . . . . . . . . . . . . . . Miscellaneous . | . . . . . . . . . . . . . . . . . . . . . . . . . . . . . . . . . . . . Route ------- -11/Scrapyard -10/Materials (discovered 4 exits: *Mat x3 / *Min) -10/Mines (discovered 4 exits: *Mat x2 / *Exi / *Sub) -10/Exiles -9/Mines (discovered 2 exits: *Mat x2) -8/Materials (discovered 5 exits: *Fac x3 / *Sto x2) -8/Storage (discovered 2 exits: *Fac / [*Rec]) -7/Factory (discovered 5 exits: *Fac x3 / *Low x2) -7/Waste -7/Factory (discovered 4 exits: *Fac x2 / *Low x2) -7/Lower Caves -7/Lower Caves (discovered 2 exits: *Fac / *Zio) -7/Zion -6/Proximity Caves -6/Factory (discovered 5 exits: *Fac x3 / *Low x2) -6/Waste -6/Factory (discovered 5 exits: *Fac / *Low x2 / *Ext x2) -6/Lower Caves -6/Lower Caves (discovered 2 exits: Fac / *Dat) -6/Data Miner -5/Proximity Caves -5/Factory (discovered 4 exits: *Fac x3 / Upp) -5/Waste -5/Factory (discovered 2 exits: *Upp x2) -5/Upper Caves -5/Upper Caves -5/Zhirov -4/Proximity Caves -4/Factory (discovered 5 exits: *Res x2 / *Upp x2 / Arm) -4/Upper Caves -4/Upper Caves -4/Warlord -3/Proximity Caves -3/Research -3/Quarantine -3/Section 7 (discovered 1 exit: Res) History --------- Turn | Location | Event 21 | -11/Scrapyard | Discovered new exit (range 15) 131 | -11/Scrapyard | Entered Materials 342 | -10/Materials | Build established: Mutant 354 | -10/Materials | Discovered new exit (range 15) 771 | -10/Materials | Core integrity fell below 50% 881 | -10/Materials | Discovered new exit (range 14) 1092 | -10/Materials | Discovered new exit (range 13) 1495 | -10/Materials | Learned 4 Subcaves zone layouts 1565 | -10/Materials | Learned 2 Mines zone layouts 1595 | -10/Materials | Discovered new exit (range 13) 1625 | -10/Materials | Learned 4 Subcaves zone layouts 1675 | -10/Materials | Learned location of Mines (-9) 1751 | -10/Materials | Learned 4 Subcaves zone layouts 1775 | -10/Materials | Learned location of Subcaves (-10) 1807 | -10/Materials | Loaded intel: 2 recycling unit locations 1849 | -10/Materials | Learned location of 2 exits from Mines 1963 | -10/Materials | Learned Materials stockpile data 1999 | -10/Materials | Entered Mines 2000 | -10/Mines | Identified exit to Materials 2000 | -10/Mines | Identified exit to Subcaves 2061 | -10/Mines | Met a Derelict bent on vengeance 2233 | -10/Mines | Assembled infested the area 2320 | -10/Mines | Met a Derelict testing a Signal Generator 2796 | -10/Mines | Discovered new exit (range 5) 2852 | -10/Mines | Learned Materials trap positions 3159 | -10/Mines | Learned location of Storage (-8) 3446 | -10/Mines | Entered Exiles 3555 | -10/Exiles | Met 8R-AWN 3593 | -10/Exiles | Met EX-HEX 3668 | -10/Exiles | Met EX-BIN 3785 | -10/Exiles | Met EX-DEC 3797 | -10/Exiles | Learned location of Zion (-7) 3912 | -10/Exiles | Visited The Gauntlet 4084 | -10/Exiles | Discovered new exit (range 15) 4218 | -10/Exiles | Entered Mines 4698 | -9/Mines | Found a damaged Exp. Sensor Array with a note attached 4703 | -9/Mines | Found Prototype Device 4716 | -9/Mines | Identified Exp. Sensor Array 4918 | -9/Mines | Assisted by bots powering up and referring to "LRC-V3" 4955 | -9/Mines | Discovered new exit (range 11) 4969 | -9/Mines | Discovered new exit (range 8) 5121 | -9/Mines | Learned location of 1 exit from Materials 5705 | -9/Mines | Entered Materials 5705 | -8/Materials | Accompanied by 3 allies 5705 | -8/Materials | Evolved 4 slots: Utility x4 5706 | -8/Materials | Identified exit to Factory 5707 | -8/Materials | Loaded intel: 20 trap records 5995 | -8/Materials | Build established: Scavenger-Mutant 6009 | -8/Materials | Lost 3 allies 6343 | -8/Materials | Repaired Broken Exp. Sensor Array? 6525 | -8/Materials | Lost 3 parts (2u1w) 6627 | -8/Materials | Discovered exit to Factory (range 16) 6628 | -8/Materials | Lost 4 parts (1p2n1u) 6979 | -8/Materials | Build established: Mutant 7734 | -8/Materials | Build established: Scavenger-Mutant 7870 | -8/Materials | Discovered new exit (range 15) 8439 | -8/Materials | Discovered new exit (range 6) 8532 | -8/Materials | Build established: Mutant 8688 | -8/Materials | Entered Storage 9053 | -8/Storage | Discovered new exit (range 15) 9425 | -8/Storage | Used back door to open Recycling access 10068 | -8/Storage | Met 01-MTF 10111 | -8/Storage | Core integrity fell below 50% 10125 | -8/Storage | Destroyed 01-MTF 10132 | -8/Storage | Found Prototype Device 10132 | -8/Storage | Identified 01-MTF's Autohacker 10394 | -8/Storage | Entered Factory 10394 | -7/Factory | Evolved 2 slots: Propulsion x2 10395 | -7/Factory | Identified exit to Factory 10554 | -7/Factory | Discovered exit to Factory (range 15) 10569 | -7/Factory | Discovered new exit (range 8) 10643 | -7/Factory | Identified exit to Lower Caves 10715 | -7/Factory | Build established: Hacker-Sprinter 10724 | -7/Factory | Repaired Imp. VTOL Module? 11307 | -7/Factory | Fabricated Cld. VTOL Module (x1) 11329 | -7/Factory | Build established: Hacker-Scout 11444 | -7/Factory | Discovered exit to Factory (range 15) 11513 | -7/Factory | Central database locked down 11590 | -7/Factory | Fabricated Cld. VTOL Module (x1) 11689 | -7/Factory | Learned location of Proximity Caves (-4) 11769 | -7/Factory | Learned location of 1 exit from Hub_04(d) 11806 | -7/Factory | Loaded intel: 96 trap records 11868 | -7/Factory | Sucked down chute 11868 | -7/Factory | Entered Waste 11870 | -7/Waste | Spotted C-40 Crusher 11881 | -7/Waste | Spotted C-40 Crusher 11883 | -7/Waste | EMP discharged 11883 | -7/Waste | Spotted C-40 Crusher 11884 | -7/Waste | Spotted C-40 Crusher 11897 | -7/Waste | Spotted C-40 Crusher 11899 | -7/Waste | Spotted C-40 Crusher 11900 | -7/Waste | Discovered new exit (range 13) 11904 | -7/Waste | Identified exit to Factory 11904 | -7/Waste | Entered Factory 12045 | -7/Factory | Discovered exit to Factory (range 14) 12248 | -7/Factory | Repaired Hvy. Rocket Launcher 12366 | -7/Factory | Noticed a derelict Sapper rigging charges 12426 | -7/Factory | Discovered exit to Factory (range 14) 12481 | -7/Factory | System corruption reached 10% 12537 | -7/Factory | Repaired Transmission Jammer 12939 | -7/Factory | Repaired Cld. VTOL Module 13143 | -7/Factory | Fabricated Cld. VTOL Module (x1) 13196 | -7/Factory | Fabricated Imp. System Shield (x1) 13258 | -7/Factory | Repaired Cld. VTOL Module 13425 | -7/Factory | Fabricated Cld. VTOL Module? 13448 | -7/Factory | Entered Lower Caves 13461 | -7/Lower Caves | Learned Factory security intel 13495 | -7/Lower Caves | Encountered a Warlord checkpoint 13496 | -7/Lower Caves | Learned 4 Factory zone layouts 13559 | -7/Lower Caves | Discovered new exit (range 5) 13597 | -7/Lower Caves | Identified exit to Lower Caves 13597 | -7/Lower Caves | Entered another Lower Caves area 13619 | -7/Lower Caves | Learned Factory trap positions 13649 | -7/Lower Caves | Discovered exit to Factory (range 13) 13954 | -7/Lower Caves | Discovered new exit (range 14) 13957 | -7/Lower Caves | Identified exit to Zion 13982 | -7/Lower Caves | Entered Zion 13982 | -7/Zion | Accompanied by 3 allies 14000 | -7/Zion | Build established: Hacker-Ninja 14001 | -7/Zion | System corruption cleaned by Quarantine Array 14034 | -7/Zion | Learned Factory stockpile data 14075 | -7/Zion | Found CR-A16's Pointy Stick 14287 | -7/Zion | Met Imprinter 14311 | -7/Zion | Found Prototype Special Weapon 14311 | -7/Zion | Identified RU-N14's Throwing Claymores 14391 | -7/Zion | Received a visual enhancement algorithm 14395 | -7/Zion | Discovered new exit (range 12) 14396 | -7/Zion | Acquired unknown access codes intercepted by a Zionite 14400 | -7/Zion | Identified exit to Proximity Caves 14590 | -7/Zion | Entered Proximity Caves 14590 | -6/Proximity Caves | Accompanied by 3 allies 14615 | -6/Proximity Caves | Spotted B-75 Beast 14620 | -6/Proximity Caves | Allies destroyed B-75 Beast 14876 | -6/Proximity Caves | Discovered exit to Factory (range 15) 14991 | -6/Proximity Caves | Received a Behemoth hack from an annoying Tinkerer 15135 | -6/Proximity Caves | Entered Factory 15135 | -6/Factory | Accompanied by 1 ally 15135 | -6/Factory | Evolved 2 slots: Power x1, Utility x1 15136 | -6/Factory | Identified exit to Factory 15137 | -6/Factory | Loaded intel: 87 trap records 15206 | -6/Factory | Fabricated Gamma Bomb Array (x1) 15314 | -6/Factory | Spotted B-75 Beast 15361 | -6/Factory | Revealed the true nature of CR-A16's Pointy Stick 15364 | -6/Factory | Destroyed B-75 Beast 15388 | -6/Factory | Lost 3 parts (1p1n1u) 15388 | -6/Factory | Discovered new exit (range 16) 15393 | -6/Factory | Identified exit to Lower Caves 15431 | -6/Factory | Discovered exit to Lower Caves (range 15) 15451 | -6/Factory | Discovered exit to Factory (range 16) 15681 | -6/Factory | Build established: Infiltrator-Ninja 15795 | -6/Factory | Fabricated Imp. Hacking Suite (x1) 15915 | -6/Factory | Discovered exit to Factory (range 5) 16094 | -6/Factory | Build established: Hacker-Ninja 16164 | -6/Factory | Repaired Cld. VTOL Module? 16206 | -6/Factory | Fabricated Imp. Hacking Suite? 16240 | -6/Factory | Fabricated Cld. VTOL Module? 16631 | -6/Factory | Manually triggered Chute Trap 16631 | -6/Factory | Sucked down chute 16631 | -6/Factory | Entered Waste 16632 | -6/Waste | Joined by Warlord forces that had cleared the area 16951 | -6/Waste | A Compactor rumbled back to life 16951 | -6/Waste | Spotted C-40 Crusher 16959 | -6/Waste | Allies destroyed C-40 Crusher 16962 | -6/Waste | Discovered new exit (range 15) 17052 | -6/Waste | Found Broken Exp. Sensor Array 17129 | -6/Waste | Identified exit to Factory 17165 | -6/Waste | Entered Factory 17276 | -6/Factory | Repaired Exp. Sensor Array 17424 | -6/Factory | Fabricated Cld. VTOL Module? 17678 | -6/Factory | Identified exit to Extension 17736 | -6/Factory | Assembled infested ambush trap array 17971 | -6/Factory | Fabricated Adv. Hacking Suite (x1) 18078 | -6/Factory | Discovered exit to Factory (range 7) 18120 | -6/Factory | Learned Hub_04(d) stockpile data 18166 | -6/Factory | Learned location of 1 exit from Extension 18207 | -6/Factory | Fabricated Adv. System Shield? 18237 | -6/Factory | Learned location of 1 exit from Lower Caves 18250 | -6/Factory | Learned 4 Proximity Caves zone layouts 18271 | -6/Factory | Learned 2 Upper Caves zone layouts 18301 | -6/Factory | Learned 2 Extension zone layouts 18393 | -6/Factory | Fabricated Adv. Hacking Suite (x1) 18655 | -6/Factory | Repaired Cld. VTOL Module 18727 | -6/Factory | Repaired Cld. VTOL Module 18798 | -6/Factory | Repaired Cld. VTOL Module 18808 | -6/Factory | Entered Lower Caves 18809 | -6/Lower Caves | Identified exit to Lower Caves 18842 | -6/Lower Caves | Encountered a Warlord checkpoint 18917 | -6/Lower Caves | Learned Factory trap positions 18990 | -6/Lower Caves | Learned location of 1 exit from Lower Caves 19030 | -6/Lower Caves | Entered another Lower Caves area 19031 | -6/Lower Caves | Identified exit to Data Miner 19084 | -6/Lower Caves | Learned 8 Research zone layouts 19084 | -6/Lower Caves | Learned Armory garrison access intel 19115 | -6/Lower Caves | Learned Factory trap positions 19119 | -6/Lower Caves | Encountered a Warlord checkpoint 19150 | -6/Lower Caves | Entered Data Miner 19150 | -6/Data Miner | Discovered new exit (range 6) 19155 | -6/Data Miner | Met Data Miner 19160 | -6/Data Miner | Learned location of Section 7 (-3) 19160 | -6/Data Miner | Acquired the access code to Warlord's prototype stash 19165 | -6/Data Miner | Received God Mode back door access code from Data Miner 19176 | -6/Data Miner | Data Conduit disabled 19229 | -6/Data Miner | Identified exit to Proximity Caves 19229 | -6/Data Miner | Entered Proximity Caves 19232 | -5/Proximity Caves | Spotter reported a threat 19323 | -5/Proximity Caves | Spotter reported a threat 19332 | -5/Proximity Caves | Entered Factory 19332 | -5/Factory | Evolved 2 slots: Propulsion x1, Utility x1 19333 | -5/Factory | Identified exit to Factory 19333 | -5/Factory | Identified exit to Upper Caves 19334 | -5/Factory | Loaded intel: 103 trap records 19443 | -5/Factory | Discovered exit to Factory (range 15) 19953 | -5/Factory | Central database locked down 20065 | -5/Factory | Loaded intel: 6 fabricator locations 20164 | -5/Factory | Learned 8 Research zone layouts 20172 | -5/Factory | Fabricated Cld. VTOL Module (x1) 20196 | -5/Factory | Learned location of Armory (-4) 20234 | -5/Factory | Learned 4 Armory zone layouts 20260 | -5/Factory | Learned Research stockpile data 20296 | -5/Factory | Learned location of Upper Caves (-5) 20452 | -5/Factory | Fabricated Field Propulsion Array (x1) 20765 | -5/Factory | Fabricated Cloaking Device (x2) 20917 | -5/Factory | Manually triggered Chute Trap 20917 | -5/Factory | Sucked down chute 20917 | -5/Factory | Entered Waste 20917 | -5/Waste | The area was eerily silent 20997 | -5/Waste | Discovered new exit (range 14) 21000 | -5/Waste | Identified exit to Factory 21001 | -5/Waste | Entered Factory 21002 | -5/Factory | Loaded intel: 100 trap records 21194 | -5/Factory | Fabricated Adv. Hacking Suite (x1) 21316 | -5/Factory | Fabricated Imp. Transmission Jammer (x2) 21488 | -5/Factory | Repaired Cld. VTOL Module 21532 | -5/Factory | Repaired Cld. VTOL Module 21589 | -5/Factory | Fabricated Imp. Cloaking Device (x2) 21815 | -5/Factory | Entered Upper Caves 21816 | -5/Upper Caves | Learned location of Warlord (-4) 21817 | -5/Upper Caves | Learned location of 1 exit from Factory 22164 | -5/Upper Caves | Discovered new exit (range 8) 22166 | -5/Upper Caves | Identified exit to Upper Caves 22166 | -5/Upper Caves | Entered another Upper Caves area 22175 | -5/Upper Caves | Found Alien Artifact 22175 | -5/Upper Caves | Identified Core Expander 22175 | -5/Upper Caves | Installed Core Expander, added new Utility slot 22266 | -5/Upper Caves | Discovered new exit (range 10) 22268 | -5/Upper Caves | Identified exit to Zhirov 22362 | -5/Upper Caves | Entered Zhirov 22362 | -5/Zhirov | Discovered new exit (range 3) 22367 | -5/Zhirov | Met Zhirov 22374 | -5/Zhirov | Learned location of Quarantine (-3) 22374 | -5/Zhirov | Learned location of Testing (-2) 22374 | -5/Zhirov | Learned location of Command (-1) 22380 | -5/Zhirov | Zhirov requested help retrieving the SGEMP Prototype 22386 | -5/Zhirov | Found Alien Artifact 22386 | -5/Zhirov | Identified Integrated Dissipator 22386 | -5/Zhirov | Installed Integrated Dissipator, increased core heat dissipation (+20) 22492 | -5/Zhirov | Found Alien Artifact 22504 | -5/Zhirov | Identified exit to Proximity Caves 22504 | -5/Zhirov | Entered Proximity Caves 22543 | -4/Proximity Caves | Learned Research terminal intel 22965 | -4/Proximity Caves | Discovered exit to Factory (range 8) 22972 | -4/Proximity Caves | Entered Factory 22972 | -4/Factory | Evolved 2 slots: Propulsion x2 22973 | -4/Factory | Identified exit to Armory 22974 | -4/Factory | Identified exit to Research 22977 | -4/Factory | Identified Transdimensional Reconstructor 23111 | -4/Factory | Identified exit to Upper Caves 23360 | -4/Factory | Spotted B-86 Titan 23468 | -4/Factory | Found Prototype Launcher 23468 | -4/Factory | Identified Com. Tesla Bomb Launcher 23590 | -4/Factory | Repaired Imp. Transmission Jammer 23650 | -4/Factory | Discovered exit to Research (range 15) 23722 | -4/Factory | Search patrols dispatched 23940 | -4/Factory | Fabricated Field Propulsion Array (x1) 24039 | -4/Factory | Fabricated Cld. VTOL Module (x1) 24042 | -4/Factory | Spotted B-86 Titan 24071 | -4/Factory | Repaired Power Sword 24184 | -4/Factory | Repaired Structural Scanner 24221 | -4/Factory | Repaired Cld. VTOL Module 24246 | -4/Factory | Entered Upper Caves 24302 | -4/Upper Caves | Warped through subspace 24445 | -4/Upper Caves | Discovered new exit (range 10) 24448 | -4/Upper Caves | Identified exit to Upper Caves 24448 | -4/Upper Caves | Entered another Upper Caves area 24521 | -4/Upper Caves | Attracted the attention of an 0b10 outpost 24705 | -4/Upper Caves | Attracted the attention of an 0b10 checkpoint 24713 | -4/Upper Caves | Found DCF Scrap (10 items) 24722 | -4/Upper Caves | Learned Research garrison access intel 24730 | -4/Upper Caves | Encountered a Warlord checkpoint 24849 | -4/Upper Caves | Discovered new exit (range 6) 24854 | -4/Upper Caves | Identified exit to Warlord 24854 | -4/Upper Caves | Entered Warlord 24864 | -4/Warlord | System corruption cleaned by Quarantine Array 24869 | -4/Warlord | Lost 3 allies 24932 | -4/Warlord | Warlord's base attacked by MAIN.C 24945 | -4/Warlord | Met Warlord 24948 | -4/Warlord | Opened Warlord's prototype stash 24950 | -4/Warlord | Found Prototype Hackware 24950 | -4/Warlord | Identified System Mapper 24957 | -4/Warlord | Found Prototype Reactor 24957 | -4/Warlord | Identified Vortex Chain Reactor 24967 | -4/Warlord | Found Prototype Device 24967 | -4/Warlord | Identified Exp. Phase Shifter 24970 | -4/Warlord | Found Prototype Device 24970 | -4/Warlord | Identified Exp. Focal Shield 25070 | -4/Warlord | Spotted B-86 Titan 25075 | -4/Warlord | Spotted B-90 Cyclops 25090 | -4/Warlord | Allies destroyed B-90 Cyclops 25109 | -4/Warlord | Discovered new exit (range 15) 25122 | -4/Warlord | Lost 4 allies 25127 | -4/Warlord | Identified exit to Proximity Caves 25127 | -4/Warlord | Entered Proximity Caves 25247 | -3/Proximity Caves | Build established: Wizard-Ninja 25622 | -3/Proximity Caves | Discovered exit to Research (range 9) 25624 | -3/Proximity Caves | Entered Research 25624 | -3/Research | Evolved 2 slots: Utility x2 25625 | -3/Research | Identified exit to Quarantine 25628 | -3/Research | Loaded intel: 24 terminal locations 25629 | -3/Research | Loaded intel: 3 garrison access locations 25671 | -3/Research | Fabricated Field Propulsion Array (x1) 25761 | -3/Research | Entered Quarantine 25786 | -3/Quarantine | Repaired Cld. VTOL Module 25869 | -3/Quarantine | Repaired Field Propulsion Array 25877 | -3/Quarantine | Found Alien Impact Weapon 25877 | -3/Quarantine | Identified Core Stripper 25985 | -3/Quarantine | Identified exit to Research 25999 | -3/Quarantine | Found Alien Artifact 25999 | -3/Quarantine | Identified Subatomic Replicator 26048 | -3/Quarantine | Scanned by Researcher 26085 | -3/Quarantine | Found Alien Artifact 26085 | -3/Quarantine | Identified Core Reset Matrix 26085 | -3/Quarantine | Used Core Reset Matrix 26089 | -3/Quarantine | Detected hypermatrix surge 26089 | -3/Quarantine | Sensed 13 artifacts in vicinity 26126 | -3/Quarantine | Found Hpw. Transdimensional Reconstructor 26209 | -3/Quarantine | Spotted Fortress 26236 | -3/Quarantine | Discovered new exit (range 5) 26236 | -3/Quarantine | Identified exit to Section 7 26237 | -3/Quarantine | Entered Section 7 26238 | -3/Section 7 | Sensed 19 artifacts in vicinity 26261 | -3/Section 7 | Found Integrated Mediator 26261 | -3/Section 7 | Installed Integrated Mediator, increased core attachment efficiency 26284 | -3/Section 7 | Spotted S7 Guard 26370 | -3/Section 7 | Spotted Alpha 7 26371 | -3/Section 7 | Spotted Alpha 7 26380 | -3/Section 7 | Warped through subspace 26448 | -3/Section 7 | Spotted Executioner 26448 | -3/Section 7 | Spotted Executioner 26472 | -3/Section 7 | Scanned by Researcher 26473 | -3/Section 7 | Intercept squad dispatched 26480 | -3/Section 7 | Spotted Tracker 26505 | -3/Section 7 | Spotted Combat Programmer 26516 | -3/Section 7 | Core integrity fell below 50% 26520 | -3/Section 7 | Core integrity fell below 20% 26520 | -3/Section 7 | System corruption reached 10% 26524 | -3/Section 7 | Destroyed by P-80 Master with Gamma Rifle Last Messages --------------- 26515_ C-55 Analyst is analyzing... 26515_ Power Sword destroyed. 26517_ Penetrated by EMDS Slug. 26519_ Penetrated by Slug. 26519_ System Mapper destroyed. 26519_ Slug penetrates Earth. 26520_ Held in stasis. 26520_ C-55 Analyst is analyzing... 26520_ Slammed into P-80 Master. 26521_ Combat Programmer resets P-80 Master, system corruption cleaned. 26521_ Slammed into P-80 Master. 26522_ Slug penetrates Wall. 26522_ Penetrated by Slug. 26522_ Slug penetrates U-05 Engineer. 26522_ U-05 Engineer destroyed. 26522_ P-80 Master resets Tracker, system corruption cleaned. 26522_ Penetrated by EMDS Slug. [Achievement: Overachiever] Map ----- +----------------------------------------------------+ | ???????????????????????????#######???????????????? | | ???????????????????????????########??????????????? | | ???????????????????????????## =##??????????????? | | ???????????????????????????## ##??????????????? | | ???????????????????????????## ##??????????????? | | ???????????????????????????## ! ##??############# | | ???????????????????????????## ##??############# | | ###################????????## =##??##"""""""""" | | ###################?????????? ##??##" | | + ##???####### !######" | | ######## ##???####### ######" | | ######## #######! ###+#####T# | | ??????## ####### ! | | ??????## ## ""## 7 ^ | | ??????## ## ## #########"# | | ?????? # "" ## #;EY ###########" | | ?????? # """ # !c ##?????#### | | ?????? # "!" # p ;#????????## | | ?????? # """ #""" p ##????????##" *"" | | ?????? # "" #" " ##????????##" | | ?????? + #"" E ##????????##" | | ?????? # # [ ##????????## | | ?????? # ### p ##????????##" """ | | " ?? # ###### # p##????????##" "?? | | " ?? # ##???# # p##??????????" %= """ | | ##################@!##??????????" | | ? ##############= ##??????????" | | ##???## ##??????????" """ | | ##???## H ##??????????" "?? | | ##???## !###+##############??????????" "?? | | ###??###??## # ##??????????" | | ###?????????????? #! """ ""##??????????" | | ?????????????? # """ ""##??????????" | | ??????????????? + """ ""##??????????" | | ???????????????? # """ T##??????????" | | ??????????????? # """ ""##??????????" | | ##???????????????## ""##??????????" """ | | #### ####??????## """ ""##????????## "?? | | ####+#+####??????## """ ##????????##" "?? | | # ##??????## """ [ ##????????##"" ?? | | # ##??????## """ ##????????##""" ?? | | + ##??????## """ ! ##????????##""" ""? | | # ##??????##! ## #####""" "?? | | # ############+#+#######+##### # "?? | | # ############ + ? ?? | | # / + ? ?? | | / ############ * + ? ?? | | # ############ =%= + ? ?? | | ###+#################### ### ##### # ? ? | | ### #### ####### ### #######"?" ?? | +----------------------------------------------------+ Best States ------------- Heat Dissipation 66 Energy Generation 55 Energy Capacity 700 Matter Stores 300 Matter Capacity 300 Sight Range 22 Robot Scan Range 20 Terrain Scan Range 16 Terrain Scan Density 85 ECM Strength 2 Jamming Range 16 Cloak Strength 3 Base Temperature (-) 100 Armor Coverage 225 Resistance: TH 30 Core Shielding 20 Propulsion Shielding 90 Utility Shielding 66 Phase Shifting 20 Evasion (%) 84 Recoil Reduction 2 Matter Filtering 50 Offensive Hacking 58 Defensive Hacking 28 Authchip Count 1 Item Schematics ----------------- Exp. Field Recycling Unit | -3/Quarantine | Archive Enh. Biometal Leg | -3/Section 7 | Archive Exp. Hacking Suite | -3/Section 7 | Archive Adv. Matter Compressor | -3/Section 7 | Archive Robot Schematics ------------------ A-15 Conveyor | -3/Quarantine | Archive Y-72 Warden | -3/Quarantine | Archive A-27 Freighter | -3/Quarantine | Archive R-06 Scavenger | -3/Section 7 | Archive Fabricated ------------ Cld. VTOL Module | x1 | -7/Factory | Authchip Cld. VTOL Module | x1 | -7/Factory | Authchip Cld. VTOL Module | x1 | -7/Factory | Authchip Imp. System Shield | x1 | -7/Factory Cld. VTOL Module | x1 | -7/Factory | Authchip Gamma Bomb Array | x1 | -6/Factory | Preloaded Imp. Hacking Suite | x1 | -6/Factory | Authchip Imp. Hacking Suite | x1 | -6/Factory Cld. VTOL Module | x1 | -6/Factory Cld. VTOL Module | x1 | -6/Factory Adv. Hacking Suite | x1 | -6/Factory Adv. System Shield | x1 | -6/Factory Adv. Hacking Suite | x1 | -6/Factory Cld. VTOL Module | x1 | -5/Factory Field Propulsion Array | x1 | -5/Factory Cloaking Device | x2 | -5/Factory | Authchip Adv. Hacking Suite | x1 | -5/Factory Imp. Transmission Jammer | x2 | -5/Factory Imp. Cloaking Device | x2 | -5/Factory Field Propulsion Array | x1 | -4/Factory Cld. VTOL Module | x1 | -4/Factory Field Propulsion Array | x1 | -3/Research Alien Tech Used ----------------- Core Expander Integrated Dissipator Transdimensional Reconstructor Core Stripper Subatomic Replicator Core Reset Matrix Integrated Mediator High-powered Transdimensional Reconstructor Achievements -------------- Alien Roots Great Explorer Nope Overachiever Reappropriation Signature Confirmed Challenges ------------ None Game ------ Seed EncryptedRestorationArchive Manual? 0 Play Time 05:36:54 Cumulative 135.6 hours Start 2024.09.03 @ 10:27:05 End 2024.09.03 @ 19:42:26 Sessions 3 Manual Loads 0 Difficulty Rogue Special Mode None Game No. 82 Rogue 69 Adventurer 13 Explorer 0 Win Type - Total 2 Types 2/0/0/0/0/0/0/0/0 Lore% 49 Gallery% 61 Achievement% 50 Wizard Run 0 Options --------- Layout 2 ASCII 0 Keyboard 1 Movement Numpad Keybinds 0 Fullscreen 2 Font 16/Swanston Map View 55x47 Zoom Use 0% Tactical HUD 1 Map Filters NONE Filters NONE Steam 0 RUN: 333544d9-ed68-4257-a20e-740ba91c37ba